{"text_format":"1","workbook":"xlsx","n_sheets":29,"sheets":["Инструкция","Лог обновления","Титульный","Отпуск ЭЭ сет организациями","Комментарии","Проверка","Statistic","TEHSHEET","et_union","AllSheetsInThisWorkbook","mod_01","mod_11","modComm","modListProv","modButton","modInstruction","modHTTP","REESTR_ORG","REESTR_FIL","REESTR_MO","REESTR_EGRUL","modfrmRegion","modfrmReestr","modfrmFindEGRUL","modfrmCheckUpdates","modReestr","modUpdTemplMain","modHyperlink","modClassifierValidate"],"not_rendered":{"charts":0,"images":18,"macros":1,"external_links":0,"defined_names":119,"comments":0,"pivot_tables":0},"unopened":[],"bounds":{"document_bytes":16777216,"sheet_cells":100000,"rows_first":2000,"rows_last":500,"rows_between":2000,"halvings":0,"cell_chars":16384,"cell_head_chars":4096},"cells_cut":0,"cells_raw":0,"read":"whole","date_system":"1900"}

{"sheet":"Инструкция","index":0,"n_rows":107,"n_cols":27,"rows_kept":107,"cut":false,"hidden":false,"merged":[[106,5,106,23],[85,4,85,6],[81,4,81,23],[87,4,87,9],[87,10,87,23],[102,4,102,23],[92,4,92,9],[93,4,93,9],[92,10,92,23],[93,10,93,23],[104,5,104,18],[90,4,90,9],[90,10,90,23],[82,4,82,23],[86,4,86,9],[86,10,86,23],[1,1,1,6],[2,1,2,2],[4,1,4,24],[6,4,18,23],[45,4,56,23],[20,5,20,12],[20,15,20,23],[21,5,21,12],[21,15,21,23],[34,4,38,23],[22,5,22,13],[58,4,58,9],[58,10,58,23],[59,4,59,9],[59,10,59,23],[39,4,39,23],[71,4,71,23],[70,4,70,23],[72,4,74,23],[88,4,88,23],[89,4,89,9],[89,10,89,23],[80,4,80,23],[79,4,79,23],[76,4,76,23]]}
[null,null,null,null,null,null,null,null,null,null,null,null,null,null,null,null,null,null,null,null,null,null,null,null,null,null," (требуется обновление)"]
[null,{"$f":"\"Код шаблона: \" & GetCode()","v":"Код шаблона: 46EP.STX"}]
[null,{"$f":"\"Версия \" & GetVersion()","v":"Версия 1.0"}]
[]
[null,"Сведения об отпуске (передаче) электроэнергии распределительными сетевыми организациями отдельным категориям потребителей\nПриказ Росстата: Об утверждении формы от 05.09.2018 № 543"]
[]
[null,null,null,null,"• На рабочем месте должен быть установлен MS Office 2007 SP3, 2010, 2013, 2016 с полной версией MS Excel\n\n• Макросы во время работы должны быть включены (!)\n\n• Для корректной работы отчёта требуется выбрать низкий уровень безопасности\n(В меню MS Excel 2007/2010/2013/2016: Параметры Excel | Центр управления безопасностью | Параметры центра управления безопасностью | Параметры макросов | Включить все макросы | ОК)\n\n• Если Вы работаете в табличном процессоре MS Excel 2007 и выше, то можете использовать для работы формат XLSB (Двоичная книга Excel). При работе в формате XLSB заметно быстрее происходит сохранение файла, а также уменьшается размер по сравнению с форматами XLS и XLSM\n\n• Не рекомендуется снимать защиту с листов и каким-либо образом модифицировать защищаемые формулы и расчётные поля, в противном случае, отчёт будет отклонён системой\n\n• При сохранении не следует выбирать формат XLSX (Книга Excel), так как в указанном формате макросы, необходимые для работы отчёта, безвозвратно удаляются"]
[]
[]
[]
[]
[]
[]
[]
[]
[]
[]
[]
[]
[]
[null,null,null,null,"A"," - предназначенные для заполнения",null,null,null,null,null,null,null,null,"A"," - обязательные для заполнения поля"]
[null,null,null,null,"A"," - с формулами и константами",null,null,null,null,null,null,null,null,"A"," - незаполняемые поля"]
[null,null,null,null,"A"," - с выбором значений по двойному клику"]
[]
[]
[]
[]
[]
[]
[]
[]
[]
[]
[]
[null,null,null,null,"Если в предложенном Вам списке необходимая организация, МР/МО отсутствуют, обновите реестры с помощью кнопок\n\nВ результате синхронизации с базой данных список организаций (МР/МО) будет заменён актуальным (механизм синхронизации требует подключения к сети Интернет и основан на использовании протокола HTTPS (TCP порт 443))\n\nЕсли после обновления Вам не удалось найти необходимую организацию в списке, обратитесь к ответственному за поддержание реестра Вашего региона."]
[]
[]
[]
[]
[]
[]
[]
[]
[]
[]
[null,null,null,null,"• При сохранении шаблона осуществляется проверка корректности данных, в том числе на наличие значений в ячейках, обязательных для заполнения\n\n• Если какая-то ячейка не удовлетворяет условию проверки, на лист «Проверка» добавляется гиперссылка на данную ячейку и указывается причина ошибки\n\n• В колонке «Статус» для каждого сообщения возможны 2 значения: ошибка и предупреждение\n\n• При наличии сообщений со статусом «Ошибка» шаблон будет отклонён системой и не будет загружен в хранилище данных, сообщения со статусом «Предупреждение» носят информационный характер, и такой шаблон будет принят системой"]
[]
[]
[]
[]
[]
[]
[]
[]
[]
[]
[]
[]
[null,null,null,null,"Консультации:",null,null,null,null,null,"Обратиться за помощью"]
[null,null,null,null,"Дистрибутивы:",null,null,null,null,null,"Перейти"]
[]
[]
[]
[]
[]
[]
[]
[]
[]
[null,null,null,null,"Общие указания по заполнению:"]
[null,null,null,null,"Указания по заполнению формы федерального статистического наблюдения"]
[]
[null,null,null,null,"Если срок предоставления отчета истек, необходимо загрузить в систему пояснительную записку и указать ссылку на нее на листе \"Титульный\" в поле \"Ссылка на обосновывающие материалы\""]
[]
[]
[null,null,null,null,"Обосновывающие материалы необходимо загружать с помощью \"ЕИАС Мониторинг\":"]
[null,null,null,null,"Руководство по загрузке документов"]
[]
[null,null,null,null,"Пример пояснительной записки:"]
[null,null,null,null,"Пояснительная записка"]
[]
[]
[]
[]
[]
[]
[null,null,null,null,"Отчётные формы:",null,null,null,null,null,"Перейти к разделу"]
[]
[null,null,null,null,"Контакты специалистов ЦА ФАС России:"]
[null,null,null,null,"ФИО:",null,null,null,null,null,"Максим Николаевич Пальянов"]
[null,null,null,null,"E-mail:",null,null,null,null,null,"palyanovmn@fas.gov.ru"]
[]
[null,null,null,null,"ФИО:",null,null,null,null,null,"Игорь Владиславович Бедрин"]
[null,null,null,null,"E-mail:",null,null,null,null,null,"bedrin@fas.gov.ru"]
[]
[]
[]
[]
[]
[]
[]
[]
[null,null,null,null,"При наличии подключения к Интернет, можно автоматически проверять наличие доступных обновлений. Выберите способ оповещения о наличии обновлений для отчёта:"]
[]
[null,null,null,null,null,"проверять доступные обновления (рекомендуется)",null,null,null,null,null,null,null,null,null,null,null,null,null,null,null,null,null,null,null,null,"y"]
[]
[null,null,null,null,null,"никогда не проверять наличие обновлений (не рекомендуется)"]

{"sheet":"Лог обновления","index":1,"n_rows":62,"n_cols":4,"rows_kept":62,"cut":false,"hidden":true,"merged":[]}
[]
["3/17/2012 12:12:41 AM","Дата/Время","Сообщение","Статус"]
[null,"2019-04-16T16:12:00","Проверка доступных обновлений...","Информация"]
[null,"2019-04-16T16:12:02","Нет доступных обновлений для отчёта с кодом 46EP.STX!","Информация"]
[null,"2019-04-16T16:13:49","Проверка доступных обновлений...","Информация"]
[null,"2019-04-16T16:13:50","Нет доступных обновлений для отчёта с кодом 46EP.STX!","Информация"]
[null,"2019-04-16T16:14:10","Проверка доступных обновлений...","Информация"]
[null,"2019-04-16T16:14:11","Нет доступных обновлений для отчёта с кодом 46EP.STX!","Информация"]
[null,"2019-04-16T16:21:21","Проверка доступных обновлений...","Информация"]
[null,"2019-04-16T16:21:22","Нет доступных обновлений для отчёта с кодом 46EP.STX!","Информация"]
[null,"2019-04-16T16:33:37","Проверка доступных обновлений...","Информация"]
[null,"2019-04-16T16:33:38","Нет доступных обновлений для отчёта с кодом 46EP.STX!","Информация"]
[null,"2019-04-17T08:50:40","Проверка доступных обновлений...","Информация"]
[null,"2019-04-17T08:50:41","Нет доступных обновлений для отчёта с кодом 46EP.STX!","Информация"]
[null,"2019-06-14T09:38:12","Проверка доступных обновлений...","Информация"]
[null,"2019-06-14T09:38:14","Нет доступных обновлений для отчёта с кодом 46EP.STX!","Информация"]
[null,"2019-06-14T13:00:44","Проверка доступных обновлений...","Информация"]
[null,"2019-06-14T13:00:45","Нет доступных обновлений для отчёта с кодом 46EP.STX!","Информация"]
[null,"2019-06-14T15:14:46","Проверка доступных обновлений...","Информация"]
[null,"2019-06-14T15:14:47","Нет доступных обновлений для отчёта с кодом 46EP.STX!","Информация"]
[null,"2019-07-17T12:52:08","Проверка доступных обновлений...","Информация"]
[null,"2019-07-17T12:52:10","Нет доступных обновлений для отчёта с кодом 46EP.STX!","Информация"]
[null,"2019-07-19T14:37:07","Проверка доступных обновлений...","Информация"]
[null,"2019-07-19T14:37:09","Нет доступных обновлений для отчёта с кодом 46EP.STX!","Информация"]
[null,"2019-08-21T09:09:28","Проверка доступных обновлений...","Информация"]
[null,"2019-08-21T09:09:30","Нет доступных обновлений для отчёта с кодом 46EP.STX!","Информация"]
[null,"2019-08-21T09:32:15","Проверка доступных обновлений...","Информация"]
[null,"2019-08-21T09:32:17","Нет доступных обновлений для отчёта с кодом 46EP.STX!","Информация"]
[null,"2019-09-25T11:49:02","Проверка доступных обновлений...","Информация"]
[null,"2019-09-25T11:49:06","Нет доступных обновлений для отчёта с кодом 46EP.STX!","Информация"]
[null,"2019-09-25T12:19:41","Проверка доступных обновлений...","Информация"]
[null,"2019-09-25T12:19:43","Нет доступных обновлений для отчёта с кодом 46EP.STX!","Информация"]
[null,"2019-09-25T13:39:00","Проверка доступных обновлений...","Информация"]
[null,"2019-09-25T13:39:01","Нет доступных обновлений для отчёта с кодом 46EP.STX!","Информация"]
[null,"2019-10-22T13:11:47","Проверка доступных обновлений...","Информация"]
[null,"2019-10-22T13:11:50","Нет доступных обновлений для отчёта с кодом 46EP.STX!","Информация"]
[null,"2019-10-22T13:22:58","Проверка доступных обновлений...","Информация"]
[null,"2019-10-22T13:22:59","Нет доступных обновлений для отчёта с кодом 46EP.STX!","Информация"]
[null,"2019-10-22T16:17:02","Проверка доступных обновлений...","Информация"]
[null,"2019-10-22T16:17:05","Нет доступных обновлений для отчёта с кодом 46EP.STX!","Информация"]
[null,"2019-11-14T13:01:27","Проверка доступных обновлений...","Информация"]
[null,"2019-11-14T13:01:30","Нет доступных обновлений для отчёта с кодом 46EP.STX!","Информация"]
[null,"2019-11-14T13:55:06","Проверка доступных обновлений...","Информация"]
[null,"2019-11-14T13:55:08","Нет доступных обновлений для отчёта с кодом 46EP.STX!","Информация"]
[null,"2019-11-14T14:09:34","Проверка доступных обновлений...","Информация"]
[null,"2019-11-14T14:09:35","Нет доступных обновлений для отчёта с кодом 46EP.STX!","Информация"]
[null,"2019-11-14T14:37:29","Проверка доступных обновлений...","Информация"]
[null,"2019-11-14T14:37:31","Нет доступных обновлений для отчёта с кодом 46EP.STX!","Информация"]
[null,"2020-01-06T11:33:55","Проверка доступных обновлений...","Информация"]
[null,"2020-01-06T11:33:57","Нет доступных обновлений для отчёта с кодом 46EP.STX!","Информация"]
[null,"2020-01-29T11:53:01","Проверка доступных обновлений...","Информация"]
[null,"2020-01-29T11:53:03","Нет доступных обновлений для отчёта с кодом 46EP.STX!","Информация"]
[null,"2020-02-06T13:38:38","Проверка доступных обновлений...","Информация"]
[null,"2020-02-06T13:38:42","Нет доступных обновлений для отчёта с кодом 46EP.STX!","Информация"]
[null,"2020-02-06T15:51:47","Проверка доступных обновлений...","Информация"]
[null,"2020-02-06T15:51:48","Нет доступных обновлений для отчёта с кодом 46EP.STX!","Информация"]
[null,"2020-02-17T17:00:22","Проверка доступных обновлений...","Информация"]
[null,"2020-02-17T17:00:24","Нет доступных обновлений для отчёта с кодом 46EP.STX!","Информация"]
[null,"2020-02-17T17:24:52","Проверка доступных обновлений...","Информация"]
[null,"2020-02-17T17:24:53","Нет доступных обновлений для отчёта с кодом 46EP.STX!","Информация"]
[null,"2021-01-28T09:23:32","Проверка доступных обновлений...","Информация"]
[null,"2021-01-28T09:23:34","Нет доступных обновлений для отчёта с кодом 46EP.STX!","Информация"]

{"sheet":"Титульный","index":2,"n_rows":60,"n_cols":10,"rows_kept":60,"cut":false,"hidden":false,"merged":[[7,4,7,6]]}
[]
[]
[]
[]
[]
[]
[null,null,null,null,null,null,{"$f":"version","v":"Версия 1.0"}]
[null,null,null,null,"Сведения об отпуске (передаче) электроэнергии распределительными сетевыми организациями отдельным категориям потребителей"]
[]
[null,null,null,null,null,"Субъект РФ","Ярославская область"]
[null,null,null,null,null,null,"Отчетный период"]
[null,null,null,null,null,"Год",2020]
[null,null,null,null,null,"Месяц","год"]
[]
[null,null,null,null,null,"Наименование организации","ОАО \"Рыбинская городская электросеть\"",null,null,"30919136"]
[null,null,null,null,null,"ИНН","7610096000"]
[null,null,null,null,null,"КПП","761001001"]
[null,null,null,null,null,"Вид деятельности","РСО"]
[]
[null,null,null,null,null,"Тип отчета","В целом по организации"]
[null,null,null,null,null,"Наименование обособленного подразделения"]
[]
[null,null,null,null,null,"ОКПО","03220274"]
[]
[null,null,null,null,null,"ОКАТО","78415000000"]
[]
[null,null,null,null,null,"Муниципальный район","Рыбинский муниципальный район"]
[null,null,null,null,null,"Муниципальное образование","Рыбинский муниципальный район"]
[null,null,null,null,null,"ОКТМО","78640000"]
[]
[null,null,null,null,null,"Котлодержатель","Нет"]
[]
[null,null,null,null,null,"Плательщик НДС","Да"]
[null,null,null,null,null,null,"Адрес организации"]
[null,null,null,null,null,"Юридический адрес:","152919 Ярославская обл., г.Рыбинск, ул.Щепкина, д.16"]
[null,null,null,null,null,"Почтовый адрес:","152919 Ярославская обл., г.Рыбинск, ул.Щепкина, д.16"]
[null,null,null,null,null,null,"Руководитель"]
[null,null,null,null,null,"Фамилия, имя, отчество","Асадов Рафик Рагибович"]
[null,null,null,null,null,"(код) номер телефона","(4955) 26-23-13"]
[null,null,null,null,null,null,"Главный бухгалтер"]
[null,null,null,null,null,"Фамилия, имя, отчество","Тонкая Юлия Борисовна"]
[null,null,null,null,null,"(код) номер телефона"," (4955) 26-55-05"]
[null,null,null,null,null,null,"Должностное лицо, ответственное за составление формы"]
[null,null,null,null,null,"Фамилия, имя, отчество","Емельянова Анна Павловна"]
[null,null,null,null,null,"Должность","ведущий экономист"]
[null,null,null,null,null,"(код) номер телефона","(4955) 26-23-13"]
[null,null,null,null,null,"e-mail","eap@rybelset.ru"]
[]
[null,null,null,null,null,"Максимальный интервал представления отчёта за прошедшие периоды (дней)","90"]
[]
[]
[]
[]
[]
[]
[null,null,null,null,"Дата последнего обновления реестра МР/МО:\r16.04.2019 16:13:49"]
[null,null,null,null,"Дата последнего обновления реестра организаций: 28.01.2021 10:40:27"]
[]
[null,null,null,null,null,"Срок предоставления отчета истек","Нет"]
[null,null,null,null,null,"Ссылка на обосновывающие материалы"]

{"sheet":"Отпуск ЭЭ сет организациями","index":3,"n_rows":169,"n_cols":17,"rows_kept":169,"cut":false,"hidden":false,"merged":[[7,3,7,4],[10,3,11,3],[13,3,13,10],[62,3,62,10],[10,4,11,4],[10,5,11,5],[10,6,11,6],[10,7,10,10],[104,3,104,10],[108,3,108,10],[141,3,141,10],[164,5,164,6],[164,8,164,10],[165,5,165,6],[165,8,165,10],[165,12,165,13],[167,5,167,7],[168,5,168,7]]}
[]
[]
[]
[]
[null,null,null,null,null,"L1","L1.1","L1.2","L2","L2.1","L2.2","L3","L3.1","L3.1","L3.2","L4.1","L4.2"]
[]
[]
[null,null,null,"Сведения об отпуске (передаче) электроэнергии распределительными сетевыми организациями отдельным категориям потребителей"]
[null,null,null,{"$f":"IF(org=\"\",\"Не определено\",org)","v":"ОАО \"Рыбинская городская электросеть\""}]
[null,null,null,null,null,null,null,null,null,null,"Коды по ОКЕИ: 1000 киловатт-часов – 246, мегаватт – 215, тысяча рублей – 384"]
[null,null,null,"№ п/п","Наименование показателя","Код строки","Всего","В том числе по уровню напряжения"]
[null,null,null,null,null,null,null,"ВН","СН1","СН2","НН"]
[null,null,null,0,1,2,3,4,5,6,7]
[null,null,null,"I. Электроэнергия (тыс. кВт ч)"]
[null,null,null,"1","Поступление в сеть из других организаций:",10,{"$f":"SUM(H15:K15)","v":408358.04700000002},{"$f":"H16+H17+H20+H28","v":362515.13800000004},{"$f":"I16+I17+I20+I28","v":35242.103999999999},{"$f":"J16+J17+J20+J28","v":10142.084999999999},{"$f":"K16+K17+K20+K28","v":458.72},null,null,null,null,10]
[null,null,null,"1.1","из сетей ПАО \"ФСК ЕЭС\"",20,{"$f":"SUM(H16:K16)","v":22523.666000000001},22523.666000000001,null,null,null,null,null,null,null,20]
[null,null,null,"1.2","от генерирующих компаний и блок-станций:",30,0,{"$f":"SUM(H18:H19)","v":0},{"$f":"SUM(I18:I19)","v":0},{"$f":"SUM(J18:J19)","v":0},{"$f":"SUM(K18:K19)","v":0},null,null,null,null,30]
[null,null,null,"1.2.0",null,"30"]
[null,null,null,null,"Добавить организацию"]
[null,null,null,"1.3","от несетевых организаций:","230",5603.0920000000006,{"$f":"SUM(H21:H27)","v":1277.528},{"$f":"SUM(I21:I27)","v":7.0439999999999996},{"$f":"SUM(J21:J27)","v":3859.8},{"$f":"SUM(K21:K27)","v":458.72}]
[null,null,null,"1.3.0",null,"230"]
[null,null,"О","1.3.1","ПУБЛИЧНОЕ АКЦИОНЕРНОЕ ОБЩЕСТВО \"ОДК-САТУРН\"",231,{"$f":"SUM(H22:K22)","v":1277.528},1277.528,null,null,null,null,"7610052644","761001001","egrul"]
[null,null,"О","1.3.2","АКЦИОНЕРНОЕ ОБЩЕСТВО \"ОДК-ГАЗОВЫЕ ТУРБИНЫ\"",232,{"$f":"SUM(H23:K23)","v":7.0439999999999996},null,7.0439999999999996,null,null,null,"7610070114","761001001","egrul"]
[null,null,"О","1.3.3","ОТКРЫТОЕ АКЦИОНЕРНОЕ ОБЩЕСТВО \"190 ЦЕНТРАЛЬНЫЙ РЕМОНТНЫЙ ЗАВОД СРЕДСТВ СВЯЗИ\"",233,{"$f":"SUM(H24:K24)","v":3855.6680000000001},null,null,3855.6680000000001,null,null,"7610084068","761001001","egrul"]
[null,null,"О","1.3.4","ЗАКРЫТОЕ АКЦИОНЕРНОЕ ОБЩЕСТВО \"СВОБОДА\"",234,{"$f":"SUM(H25:K25)","v":458.72},null,null,null,458.72,null,"7610008050","761001001","egrul"]
[null,null,"О","1.3.5","АКЦИОНЕРНОЕ ОБЩЕСТВО \"СУДОСТРОИТЕЛЬНЫЙ ЗАВОД \"ВЫМПЕЛ\"",235,{"$f":"SUM(H26:K26)","v":4.1319999999999997},null,null,4.1319999999999997,null,null,"7610015674","761001001","egrul"]
[null,null,null,null,"Добавить организацию"]
[null,null,null,"1.4","от смежных сетевых организаций:","430",380231.28899999999,{"$f":"SUM(H29:H33)","v":338713.94400000002},{"$f":"SUM(I29:I33)","v":35235.06},{"$f":"SUM(J29:J33)","v":6282.2849999999999},{"$f":"SUM(K29:K33)","v":0},null,null,null,null,40]
[null,null,null,"1.4.0",null,"430"]
[null,null,"О","1.4.1","Филиал ПАО \"МРСК Центра\" - \"Ярэнерго\"",431,{"$f":"SUM(H30:K30)","v":380026.73700000002},338636.92800000001,35235.06,6154.7489999999998,null,null,"6901067107","760602001","26525044"]
[null,null,"О","1.4.2","АО \"Межрегиональная Энергосервисная Компания\"",432,{"$f":"SUM(H31:K31)","v":99.888000000000005},77.016000000000005,null,22.872,null,null,"7604217739","760401001","28274447"]
[null,null,"О","1.4.3","Северная дирекция по энергообеспечению - структурное подразделение Трансэнерго - филиала ОАО \"Российские железные дороги\"",433,{"$f":"SUM(H32:K32)","v":104.664},null,null,104.664,null,null,"7708503727","760445013","26754796"]
[null,null,null,null,"Добавить организацию"]
[null,null,null,"2","Поступление в сеть из других уровней напряжения (трансформация)","630",592084.8027,{"$f":"H36+H37+H38","v":0},{"$f":"I35+I37+I38","v":0},{"$f":"J35+J36+J38","v":363300.32949999999},{"$f":"K35+K36+K37","v":228784.47320000001},null,null,null,null,50]
[null,null,null,"2.1","ВН","640",342367.61300000001,null,null,{"$f":"H55","v":342367.61300000001},null,null,null,null,null,60]
[null,null,null,"2.2","СН1","650",20932.716499999999,null,null,{"$f":"I55","v":20932.716499999999},null,null,null,null,null,70]
[null,null,null,"2.3","СН2","660",228784.47320000001,null,null,null,{"$f":"J55","v":228784.47320000001},null,null,null,null,80]
[null,null,null,"2.4","НН ","670",0,null,null,null,null,null,null,null,null,90]
[null,null,null,"3","Генерация на установках организации (совмещение деятельности)","680",0]
[null,null,null,"4","Отпуск из сети:","690",357428.61510000005,{"$f":"H41+H43+H46+H54","v":19830.96},{"$f":"I41+I43+I46+I54","v":12006.7315},{"$f":"J41+J43+J46+J54","v":120822.0123},{"$f":"K41+K43+K46+K54","v":204768.91130000001},null,null,null,null,100]
[null,null,null,"4.1","прямым прочим потребителям по договорам оказания услуг по передаче электрической энергии, в том числе:","700",14990.4869,null,1659.7435,8173.0540000000001,5157.6894000000002]
[null,null,null,"4.1.1","потребителям, опосредованно подключенным к шинам генераторов","710",0]
[null,null,null,"4.2","потребителям ГП, ЭСО, ЭСК, в том числе:","720",179173.45449999999,19830.96,10346.987999999999,104167.052,44828.4545]
[null,null,null,"4.2.1","прочим потребителям, в том числе:","730",179173.45449999999,{"$f":"H43","v":19830.96},{"$f":"I43","v":10346.987999999999},{"$f":"J43","v":104167.052},{"$f":"K43","v":44828.4545}]
[null,null,null,"4.2.1.1","потребителям, опосредованно подключенным к шинам генераторов","740",0]
[null,null,null,"4.3","смежным сетевым организациям:","750",6714.1439999999993,{"$f":"SUM(H47:H53)","v":0},{"$f":"SUM(I47:I53)","v":0},{"$f":"SUM(J47:J53)","v":6492.9779999999992},{"$f":"SUM(K47:K53)","v":221.166}]
[null,null,null,"4.3.0",null,"750"]
[null,null,"О","4.3.1","АО \"Ярославская электросетевая компания\"",751,{"$f":"SUM(H48:K48)","v":800.78199999999993},null,null,784.90499999999997,15.877000000000001,null,"7602069588","760201001","26524716"]
[null,null,"О","4.3.2","АО \"Оборонэнерго\" филиал \"Волго-Вятский\"",752,{"$f":"SUM(H49:K49)","v":903.84500000000003},null,null,698.55600000000004,205.28899999999999,null,"7704726225","526343001","27215840"]
[null,null,"О","4.3.3","Филиал ПАО \"МРСК Центра\" - \"Ярэнерго\"",753,{"$f":"SUM(H50:K50)","v":3484.0729999999999},null,null,3484.0729999999999,null,null,"6901067107","760602001","26525044"]
[null,null,"О","4.3.4","ООО \"Техпромэксперт-Ярославль\"",754,{"$f":"SUM(H51:K51)","v":1314.0160000000001},null,null,1314.0160000000001,null,null,"7604260276","760401001","28819186"]
[null,null,"О","4.3.5","ООО \"Северэнерго\"",755,{"$f":"SUM(H52:K52)","v":211.428},null,null,211.428,null,null,"7627018507","762701001","30877421"]
[null,null,null,null,"Добавить организацию"]
[null,null,null,"4.4","населению и приравненным к нему категориям","950",156550.52970000001,null,null,1988.9283,154561.60140000001,null,null,null,null,120]
[null,null,null,"5","Отпуск в сеть других уровней напряжения","960",592084.80260000005,{"$f":"H15-H56-H58-H43","v":342367.61300000001},{"$f":"I15-I40-I58","v":20932.716499999999},{"$f":"J15+J34-J58-J40","v":228784.47320000001},{"$f":"K15+K34-K58-K40","v":-1.0000000474974513E-4},null,null,null,null,150]
[null,null,null,"6","Хозяйственные нужды организации","970",167.52500000000001,167.52500000000001,null,null,null,null,null,null,null,160]
[null,null,null,"7","Собственное потребление (совмещение деятельности)","980",0,null,null,null,null,null,null,null,null,180]
[null,null,null,"8","Общий объем потерь (фактические объемы), в том числе:","990",50761.906999999999,149.04,2302.6559999999999,23835.929,24474.281999999999,null,null,null,null,190]
[null,null,null,"8.1","относимые на собственное потребление (фактическое значение)","1000",0,null,null,null,null,null,null,null,null,200]
[null,null,null,"9","Нормативные потери (объемы потерь учтенные в сводном прогнозном балансе)","1010",59425.5,174.476,2695.6550000000002,27904.034,28651.334999999999]
[null,null,null,"10","Объем превышения фактических объемов потерь электрической энергии над объемами потерь, учтенными в сводном прогнозном балансе за соответствующий расчетный период","1020",-8663.5930000000008,{"$f":"H58-H60","v":-25.436000000000007},{"$f":"I58-I60","v":-392.99900000000025},{"$f":"J58-J60","v":-4068.1049999999996},{"$f":"K58-K60","v":-4177.0529999999999}]
[null,null,null,"11","Небаланс","1030",0,{"$f":"(H15+H34+H39)-(H40+H55+H56+H57+H58)","v":0},{"$f":"(I15+I34+I39)-(I40+I55+I56+I57+I58)","v":0},{"$f":"(J15+J34+J39)-(J40+J55+J56+J57+J58)","v":0},{"$f":"(K15+K34+K39)-(K40+K55+K56+K57+K58)","v":0},null,null,null,null,210]
[null,null,null,"II. Мощность (МВт)"]
[null,null,null,"12","Поступление в сеть из других организаций:","1040",103.88929999999999,{"$f":"H65+H66+H69+H72","v":9.1199999999999992},{"$f":"I65+I66+I69+I72","v":4.3899999999999997},{"$f":"J65+J66+J69+J72","v":32.893999999999998},{"$f":"K65+K66+K69+K72","v":57.485300000000002},null,null,null,null,300]
[null,null,null,"12.1","из сетей ПАО \"ФСК ЕЭС\"","1050",0,null,null,null,null,null,null,null,null,310]
[null,null,null,"12.2","от генерирующих компаний и блок-станций:","1060",0,{"$f":"SUM(H67:H68)","v":0},{"$f":"SUM(I67:I68)","v":0},{"$f":"SUM(J67:J68)","v":0},{"$f":"SUM(K67:K68)","v":0},null,null,null,null,320]
[null,null,null,"12.2.0",null,"1060"]
[null,null,null,null,"Добавить организацию"]
[null,null,null,"12.3","от несетевых организаций:","1260",0,{"$f":"SUM(H70:H71)","v":0},{"$f":"SUM(I70:I71)","v":0},{"$f":"SUM(J70:J71)","v":0},{"$f":"SUM(K70:K71)","v":0}]
[null,null,null,"12.3.0",null,"1260"]
[null,null,null,null,"Добавить организацию"]
[null,null,null,"12.4","от смежных сетевых организаций:","1460",103.88929999999999,{"$f":"SUM(H73:H75)","v":9.1199999999999992},{"$f":"SUM(I73:I75)","v":4.3899999999999997},{"$f":"SUM(J73:J75)","v":32.893999999999998},{"$f":"SUM(K73:K75)","v":57.485300000000002},null,null,null,null,330]
[null,null,null,"12.4.0",null,"1460"]
[null,null,"О","12.4.1","Филиал ПАО \"МРСК Центра\" - \"Ярэнерго\"",1461,{"$f":"SUM(H74:K74)","v":103.88929999999999},9.1199999999999992,4.3899999999999997,32.893999999999998,57.485300000000002,null,"6901067107","760602001","26525044"]
[null,null,null,null,"Добавить организацию"]
[null,null,null,"13","Поступление в сеть из других уровней напряжения (трансформация)","1660",0,{"$f":"H78+H79+H80","v":0},{"$f":"I77+I79+I80","v":0},{"$f":"J77+J78+J80","v":0},{"$f":"K77+K78+K79","v":0},null,null,null,null,340]
[null,null,null,"13.1","ВН","1670",0,null,null,null,null,null,null,null,null,350]
[null,null,null,"13.2","СН1","1680",0,null,null,null,null,null,null,null,null,360]
[null,null,null,"13.3","СН2","1690",0,null,null,null,null,null,null,null,null,370]
[null,null,null,"13.4","НН ","1700",0,null,null,null,null,null,null,null,null,380]
[null,null,null,"14","Генерация на установках организации (совмещение деятельности)","1710",0]
[null,null,null,"15","Отпуск из сети:","1720",103.88930000000002,{"$f":"H83+H85+H88+H96","v":9.1199999999999992},{"$f":"I83+I85+I88+I96","v":4.3899999999999997},{"$f":"J83+J85+J88+J96","v":32.894000000000005},{"$f":"K83+K85+K88+K96","v":57.485300000000009},null,null,null,null,390]
[null,null,null,"15.1","прямым прочим потребителям по договорам оказания услуг по передаче электрической энергии, в том числе:","1730",8.4589999999999996,null,0.98299999999999998,6.0090000000000003,1.4670000000000001]
[null,null,null,"15.1.1","потребителям, опосредованно подключенным к шинам генераторов","1740",0]
[null,null,null,"15.2","потребителям ГП, ЭСО, ЭСК, в том числе:","1750",48.886699999999998,9.1199999999999992,{"$f":"4.39-0.983","v":3.4069999999999996},{"$f":"J74-J83-J88-J96","v":25.1557},11.204000000000001]
[null,null,null,"15.2.1","прочим потребителям, в том числе:","1760",0]
[null,null,null,"15.2.1.1","потребителям, опосредованно подключенным к шинам генераторов","1770",0]
[null,null,null,"15.3","смежным сетевым организациям:","1780",1.3339999999999999,{"$f":"SUM(H89:H95)","v":0},{"$f":"SUM(I89:I95)","v":0},{"$f":"SUM(J89:J95)","v":1.2869999999999999},{"$f":"SUM(K89:K95)","v":4.7E-2}]
[null,null,null,"15.3.0",null,"1780"]
[null,null,"О","15.3.1","АО \"Ярославская электросетевая компания\"",1781,{"$f":"SUM(H90:K90)","v":0.06},null,null,0.06,null,null,"7602069588","760201001","26524716"]
[null,null,"О","15.3.2","АО \"Оборонэнерго\" филиал \"Волго-Вятский\"",1782,{"$f":"SUM(H91:K91)","v":0.18},null,null,0.14399999999999999,3.5999999999999997E-2,null,"7704726225","526343001","27215840"]
[null,null,"О","15.3.3","Филиал ПАО \"МРСК Центра\" - \"Ярэнерго\"",1783,{"$f":"SUM(H92:K92)","v":0.77700000000000002},null,null,0.77700000000000002,null,null,"6901067107","760602001","26525044"]
[null,null,"О","15.3.4","ООО \"Техпромэксперт-Ярославль\"",1784,{"$f":"SUM(H93:K93)","v":0.30599999999999999},null,null,0.30599999999999999,null,null,"7604260276","760401001","28819186"]
[null,null,"О","15.3.5","ЗАО \"Пансионат отдыха \"Ярославль\"",1785,{"$f":"SUM(H94:K94)","v":1.0999999999999999E-2},null,null,null,1.0999999999999999E-2,null,"7627015577","762701001","26514513"]
[null,null,null,null,"Добавить организацию"]
[null,null,null,"15.4","населению и приравненным к нему категориям","1980",45.209600000000009,null,null,0.44230000000000003,{"$f":"K72-K83-K85-K88","v":44.767300000000006},null,null,null,null,410]
[null,null,null,"16","Отпуск в сеть других уровней напряжения","1990",0,null,null,null,null,null,null,null,null,440]
[null,null,null,"17","Хозяйственные нужды организации","2000",0,null,null,null,null,null,null,null,null,450]
[null,null,null,"18","Собственное потребление (совмещение деятельности)","2010",0,null,null,null,null,null,null,null,null,470]
[null,null,null,"19","Общий объем потерь (фактические объемы), в том числе:","2020",0,null,null,null,null,null,null,null,null,480]
[null,null,null,"19.1","относимые на собственное потребление","2030",0,null,null,null,null,null,null,null,null,490]
[null,null,null,"20","Нормативные потери (объемы потерь учтенные в сводном прогнозном балансе)","2040",0]
[null,null,null,"21","Объем превышения фактических объемов потерь электрической энергии над объемами потерь, учтенными в сводном прогнозном балансе за соответствующий расчетный период","2050",0,{"$f":"H100-H102","v":0},{"$f":"I100-I102","v":0},{"$f":"J100-J102","v":0},{"$f":"K100-K102","v":0}]
[null,null,null,"22","Небаланс","2060",0,{"$f":"(H64+H76+H81)-(H82+H97+H98+H99+H100)","v":0},{"$f":"(I64+I76+I81)-(I82+I97+I98+I99+I100)","v":0},{"$f":"(J64+J76+J81)-(J82+J97+J98+J99+J100)","v":0},{"$f":"(K64+K76+K81)-(K82+K97+K98+K99+K100)","v":0},null,null,null,null,500]
[null,null,null,"III. Мощность (МВт)"]
[null,null,null,"23","Заявленная мощность","2070",103.88929999999999,9.1199999999999992,4.3899999999999997,32.893999999999998,57.485300000000002,null,null,null,null,600]
[null,null,null,"24","Максимальная мощность","2080",0,null,null,null,null,null,null,null,null,610]
[null,null,null,"25","Резервируемая мощность","2090",0,null,null,null,null,null,null,null,null,620]
[null,null,null,"IV. Фактический полезный отпуск конечным потребителям (тыс. кВт ч; МВт)"]
[null,null,null,"26","Полезный отпуск конечным потребителям (тыс. кВт ч):","2100",353944.54209999996,{"$f":"SUM(H111:H112)","v":19830.96},{"$f":"SUM(I111:I112)","v":12006.7315},{"$f":"SUM(J111:J112)","v":117337.9393},{"$f":"SUM(K111:K112)","v":204768.91130000001},null,null,null,null,700]
[null,null,null,"26.1","по одноставочному тарифу","2110",0,null,null,null,null,null,null,null,null,710]
[null,null,null,"26.2","по двухставочному тарифу:","2120",353944.54209999996,{"$f":"H115","v":19830.96},{"$f":"I115","v":12006.7315},{"$f":"J115","v":117337.9393},{"$f":"K115","v":204768.91130000001},null,null,null,null,720]
[null,null,null,"26.2.1","мощность (МВт), в том числе:","2130",103.88929999999999,{"$f":"H106","v":9.1199999999999992},{"$f":"I106","v":4.3899999999999997},{"$f":"J106","v":32.893999999999998},{"$f":"K106","v":57.485300000000002},null,null,null,null,730]
[null,null,null,"26.2.1.1","опосредованно подключенным к шинам генераторов (МВт)","2140",0]
[null,null,null,"26.2.2","компенсация потерь (тыс. кВт ч)","2150",353944.54209999996,{"$f":"H40","v":19830.96},{"$f":"I40","v":12006.7315},{"$f":"J40-J50","v":117337.9393},{"$f":"K40","v":204768.91130000001},null,null,null,null,740]
[null,null,null,"27","Полезный отпуск потребителям ГП, ЭСО (тыс. кВт ч):","2160",0,{"$f":"H117+H133","v":0},{"$f":"I117+I133","v":0},{"$f":"J117+J133","v":0},{"$f":"K117+K133","v":0},null,null,null,null,750]
[null,null,null,"27.1","по одноставочному тарифу:","2170",0,{"$f":"H118+H119","v":0},{"$f":"I118+I119","v":0},{"$f":"J118+J119","v":0},{"$f":"K118+K119","v":0},null,null,null,null,760]
[null,null,null,"27.1.1","прочим потребителям","2180",0]
[null,null,null,"27.1.2","населению и приравненным к нему категориям потребителей:","2190",0,{"$f":"H120+H123+H126+H129+H130+H131+H132","v":0},{"$f":"I120+I123+I126+I129+I130+I131+I132","v":0},{"$f":"J120+J123+J126+J129+J130+J131+J132","v":0},{"$f":"K120+K123+K126+K129+K130+K131+K132","v":0}]
[null,null,null,"27.1.2.1","Населению, проживающему в городских населенных пунктах в домах, не оборудованных в установленном порядке стационарными электроплитами и (или) электроотопительными установками и приравненным к нему категориям потребителей:","2200",0,{"$f":"H121+H122","v":0},{"$f":"I121+I122","v":0},{"$f":"J121+J122","v":0},{"$f":"K121+K122","v":0}]
[null,null,null,"27.1.2.1.1","в пределах социальной нормы потребления","2210",0]
[null,null,null,"27.1.2.1.2","сверх социальной нормы потребления","2220",0]
[null,null,null,"27.1.2.2","Населению, проживающему в городских населенных пунктах в домах, оборудованных в установленном порядке стационарными электроплитами и электроотопительными установками и приравненным к нему категориям потребителей:","2230",0,{"$f":"H124+H125","v":0},{"$f":"I124+I125","v":0},{"$f":"J124+J125","v":0},{"$f":"K124+K125","v":0}]
[null,null,null,"27.1.2.2.1","в пределах социальной нормы потребления","2240",0]
[null,null,null,"27.1.2.2.2","сверх социальной нормы потребления","2250",0]
[null,null,null,"27.1.2.3","Населению, проживающему в сельских населенных пунктах и приравненным к нему потребителям:","2260",0,{"$f":"H127+H128","v":0},{"$f":"I127+I128","v":0},{"$f":"J127+J128","v":0},{"$f":"K127+K128","v":0}]
[null,null,null,"27.1.2.3.1","в пределах социальной нормы потребления","2270",0]
[null,null,null,"27.1.2.3.2","сверх социальной нормы потребления","2280",0]
[null,null,null,"27.1.2.4","Садоводческим, огородническим или дачным некоммерческим объединениям граждан","2290",0]
[null,null,null,"27.1.2.5","Религиозным организациям","2300",0]
[null,null,null,"27.1.2.6","Юридическим лицам приобретающим электроэнергию в целях потребления на коммунально-бытовые нужды в населенных пунктах, жилых зонах при воинских частях и в целях потребления осужденными в помещениях для их содержания","2310",0]
[null,null,null,"27.1.2.7","Некоммерческим объединениям граждан (гаражно-строительные, гаражные кооперативы) и хозяйственные постройки физических лиц","2320",0]
[null,null,null,"27.2","по двухставочному тарифу (прочие потребители):","2330",0,{"$f":"H136","v":0},{"$f":"I136","v":0},{"$f":"J136","v":0},{"$f":"K136","v":0},null,null,null,null,770]
[null,null,null,"27.2.1","мощность (МВт), в том числе:","2340",0,null,null,null,null,null,null,null,null,780]
[null,null,null,"27.2.1.1"," опосредованно подключенным к шинам генераторов (МВт)","2350",0]
[null,null,null,"27.2.2","компенсация потерь (тыс. кВт ч)","2360",0,null,null,null,null,null,null,null,null,790]
[null,null,null,"28","Оплачиваемый сетевыми организациями объем оказанных услуг по индивидуальному тарифу:","2370",0,{"$f":"SUM(H138:H139)","v":0},{"$f":"SUM(I138:I139)","v":0},{"$f":"SUM(J138:J139)","v":0},{"$f":"SUM(K138:K139)","v":0}]
[null,null,null,"28.1","по одноставочному тарифу","2380",0]
[null,null,null,"28.2","по двухставочному тарифу:","2390",0,{"$f":"H141","v":0},{"$f":"I141","v":0},{"$f":"J141","v":0},{"$f":"K141","v":0}]
[null,null,null,"28.2.1","мощность (МВт)","2400",0]
[null,null,null,"28.2.2","компенсация потерь (тыс. кВт ч)","2410",0]
[null,null,null,"V. Стоимость услуг (тыс. руб.)"]
[null,null,null,"29","Стоимость услуг, оплачиваемая потребителями (конечными потребителями по прямым договорам и ТСО):","2420",578773.86389780941,{"$f":"SUM( H144:H145)","v":44050.905543660767},{"$f":"SUM( I144:I145)","v":22683.718147853109},{"$f":"SUM( J144:J145)","v":186422.69456658245},{"$f":"SUM( K144:K145)","v":325616.54563971312},null,null,null,null,800]
[null,null,null,"29.1","по одноставочному тарифу","2430",0,null,null,null,null,null,null,null,null,810]
[null,null,null,"29.2","по двухставочному тарифу:","2440",578773.86389780941,{"$f":"H146+H148","v":44050.905543660767},{"$f":"I146+I148","v":22683.718147853109},{"$f":"J146+J148","v":186422.69456658245},{"$f":"K146+K148","v":325616.54563971312},null,null,null,null,820]
[null,null,null,"29.2.1","мощность, в том числе:","2450",365997.92537230486,{"$f":"H113*244650.0515/1000*1.2*12","v":32129.401963391996},{"$f":"I113*244650.0515/1000*1.2*12","v":15465.797655623999},{"$f":"J113*244650.0515/1000*1.2*12","v":115884.27063419038},{"$f":"K113*244650.0515/1000*1.2*12","v":202518.45511909848},null,null,null,null,830]
[null,null,null,"29.2.1.1","опосредованно потребителям с шин генераторов","2460",0]
[null,null,null,"29.2.2","компенсация потерь","2470",212775.93852550455,{"$f":"H115*500.963459*1.2/1000","v":11921.503580268769},{"$f":"I115*500.963459*1.2/1000","v":7217.9204922291092},{"$f":"J115*500.963459*1.2/1000","v":70538.423932392048},{"$f":"K115*500.963459*1.2/1000","v":123098.09052061463},null,null,null,null,840]
[null,null,null,"30","Стоимость услуг, оплачиваемая ГП, ЭСО:","2480",0,{"$f":"SUM( H150+H155)","v":0},{"$f":"SUM( I150+I155)","v":0},{"$f":"SUM( J150+J155)","v":0},{"$f":"SUM( K150+K155)","v":0},null,null,null,null,850]
[null,null,null,"30.1","по одноставочному тарифу","2490",{"$f":"SUM(H150:K150)","v":0},{"$f":"SUM( H151:H152)","v":0},{"$f":"SUM( I151:I152)","v":0},{"$f":"SUM( J151:J152)","v":0},{"$f":"SUM( K151:K152)","v":0},null,null,null,null,860]
[null,null,null,"30.1.1","прочим потребителям","2500",0]
[null,null,null,"30.1.2","населению и приравненным к нему категориям потребителей:","2510",0,{"$f":"H153+H154","v":0},{"$f":"I153+I154","v":0},{"$f":"J153+J154","v":0},{"$f":"K153+K154","v":0}]
[null,null,null,"30.1.2.1","в пределах социальной нормы потребления","2520",0]
[null,null,null,"30.1.2.2","сверх социальной нормы потребления ","2530",0]
[null,null,null,"30.2","по двухставочному тарифу (прочие потребители):","2540",0,{"$f":"H156+H158","v":0},{"$f":"I156+I158","v":0},{"$f":"J156+J158","v":0},{"$f":"K156+K158","v":0},null,null,null,null,870]
[null,null,null,"30.2.1","мощность, в том числе:","2550",0,null,null,null,null,null,null,null,null,880]
[null,null,null,"30.2.1.1","опосредованно потребителям с шин генераторов","2560",0]
[null,null,null,"30.2.2","компенсация потерь","2570",0,null,null,null,null,null,null,null,null,890]
[null,null,null,"31","Стоимость услуг, оплачиваемых сетевыми организациями по индивидуальному тарифу:","2580",0,{"$f":"SUM( H160:H161)","v":0},{"$f":"SUM( I160:I161)","v":0},{"$f":"SUM( J160:J161)","v":0},{"$f":"SUM( K160:K161)","v":0},null,null,null,null,900]
[null,null,null,"31.1","по одноставочному тарифу","2590",0]
[null,null,null,"31.2","по двухставочному тарифу:","2600",0,{"$f":"H162+H163","v":0},{"$f":"I162+I163","v":0},{"$f":"J162+J163","v":0},{"$f":"K162+K163","v":0}]
[null,null,null,"31.2.1","мощность","2610",0,null,null,null,null,null,null,null,null,"920"]
[null,null,null,"31.2.2","компенсация потерь","2620",0,null,null,null,null,null,null,null,null,"910"]
[]
[null,null,null,null,"Должностное лицо, ответственное за",{"$f":"IF(Титульный!G45=\"\",\"\",Титульный!G45)","v":"ведущий экономист"},null,null,{"$f":"IF(Титульный!G44=\"\",\"\",Титульный!G44)","v":"Емельянова Анна Павловна"}]
[null,null,null,null,"предоставление статистической информации","(должность)",null,null,"(Ф.И.О.)",null,null,null,"(подпись)"]
[null,null,null,null,"(лицо, уполномоченное предоставлять"]
[null,null,null,null,"статистическую информацию от имени",{"$f":"IF(Титульный!G46=\"\",\"\",Титульный!G46)","v":"(4955) 26-23-13"},null,null,null,"«____» _________20__ год"]
[null,null,null,null,"юридического лица)","(номер контактного телефона)",null,null,null,"(дата составления документа)"]

{"sheet":"Комментарии","index":4,"n_rows":14,"n_cols":5,"rows_kept":14,"cut":false,"hidden":false,"merged":[]}
[]
[]
[]
[]
[]
[]
[]
[null,null,null,"Комментарии"]
[null,null,null,{"$f":"IF(org=\"\",\"Не определено\",org)","v":"ОАО \"Рыбинская городская электросеть\""}]
[]
[null,null,null,"№ п/п","Комментарий"]
[null,null,null,1,2]
[null,null,null,0]
[null,null,null,null,"Добавить комментарий"]

{"sheet":"Проверка","index":5,"n_rows":5,"n_cols":4,"rows_kept":5,"cut":false,"hidden":false,"merged":[[1,1,1,3]]}
[]
[null,"Результат проверки"]
[null,{"$f":"IF(org=\"\",\"Не определено\",org)","v":"ОАО \"Рыбинская городская электросеть\""}]
[]
[null,"Ссылка","Причина","Статус"]

{"sheet":"Statistic","index":6,"n_rows":72,"n_cols":3,"rows_kept":72,"cut":false,"hidden":true,"merged":[]}
[72]
["06.09.2018 19:26:20","14.0","Windows (32-bit) NT 6.01"]
["11.09.2018 18:16:52","14.0","Windows (32-bit) NT 6.01"]
["11.09.2018 20:57:11","14.0","Windows (32-bit) NT 6.01"]
["12.09.2018 09:35:26","14.0","Windows (32-bit) NT 6.01"]
["12.09.2018 10:24:58","14.0","Windows (32-bit) NT 6.01"]
["12.09.2018 16:27:05","14.0","Windows (32-bit) NT 6.01"]
["13.09.2018 15:09:23","14.0","Windows (32-bit) NT 6.01"]
["13.09.2018 16:04:22","14.0","Windows (32-bit) NT 6.01"]
["13.09.2018 16:05:18","14.0","Windows (32-bit) NT 6.01"]
["13.09.2018 19:14:38","14.0","Windows (32-bit) NT 6.01"]
["14.09.2018 11:13:01","14.0","Windows (32-bit) NT 6.01"]
["14.09.2018 11:18:37","14.0","Windows (32-bit) NT 6.01"]
["17.09.2018 21:09:54","14.0","Windows (32-bit) NT 6.01"]
["18.09.2018 10:38:31","14.0","Windows (32-bit) NT 6.01"]
["18.09.2018 12:43:39","14.0","Windows (32-bit) NT 6.01"]
["18.09.2018 12:47:52","14.0","Windows (32-bit) NT 6.01"]
["18.09.2018 12:54:00","14.0","Windows (32-bit) NT 6.01"]
["18.09.2018 12:57:51","14.0","Windows (32-bit) NT 6.01"]
["18.09.2018 13:09:47","14.0","Windows (32-bit) NT 6.01"]
["18.09.2018 13:11:28","14.0","Windows (32-bit) NT 6.01"]
["18.09.2018 13:28:28","14.0","Windows (32-bit) NT 6.01"]
["18.09.2018 15:52:57","14.0","Windows (32-bit) NT 6.01"]
["18.09.2018 17:01:38","14.0","Windows (32-bit) NT 6.01"]
["18.09.2018 18:14:48","14.0","Windows (32-bit) NT 6.01"]
["19.09.2018 16:09:09","14.0","Windows (32-bit) NT 6.01"]
["19.09.2018 18:23:43","14.0","Windows (32-bit) NT 6.01"]
["20.09.2018 10:53:47","14.0","Windows (32-bit) NT 6.01"]
["20.09.2018 11:00:09","14.0","Windows (32-bit) NT 6.01"]
["20.09.2018 11:51:55","14.0","Windows (32-bit) NT 6.01"]
["20.09.2018 12:24:20","14.0","Windows (32-bit) NT 6.01"]
["20.09.2018 15:06:45","14.0","Windows (32-bit) NT 6.01"]
["20.09.2018 15:26:56","14.0","Windows (32-bit) NT 6.01"]
["21.09.2018 13:25:15","14.0","Windows (32-bit) NT 6.01"]
["21.09.2018 15:22:58","14.0","Windows (32-bit) NT 6.01"]
["21.09.2018 15:42:42","14.0","Windows (32-bit) NT 6.01"]
["21.09.2018 16:03:56","14.0","Windows (32-bit) NT 6.01"]
["21.09.2018 20:18:40","14.0","Windows (32-bit) NT 6.01"]
["22.09.2018 17:11:07","14.0","Windows (32-bit) NT 6.01"]
["23.09.2018 20:21:15","14.0","Windows (32-bit) NT 6.01"]
["24.09.2018 14:40:14","14.0","Windows (32-bit) NT 6.01"]
["25.09.2018 14:58:01","14.0","Windows (32-bit) NT 6.01"]
["25.09.2018 19:01:11","14.0","Windows (32-bit) NT 6.01"]
["03.10.2018 12:23:00","14.0","Windows (32-bit) NT 6.01"]
["16.04.2019 16:12:01","12.0","Windows (32-bit) NT 6.01"]
["16.04.2019 16:21:21","12.0","Windows (32-bit) NT 6.01"]
["16.04.2019 16:33:37","12.0","Windows (32-bit) NT 6.01"]
["17.04.2019 08:50:40","12.0","Windows (32-bit) NT 6.01"]
["14.06.2019 09:38:13","12.0","Windows (32-bit) NT 6.01"]
["14.06.2019 13:00:44","12.0","Windows (32-bit) NT 6.01"]
["14.06.2019 15:14:46","12.0","Windows (32-bit) NT 6.01"]
["17.07.2019 12:52:08","12.0","Windows (32-bit) NT 6.01"]
["19.07.2019 14:37:08","12.0","Windows (32-bit) NT 6.01"]
["21.08.2019 09:09:28","12.0","Windows (32-bit) NT 6.01"]
["21.08.2019 09:32:16","12.0","Windows (32-bit) NT 6.01"]
["25.09.2019 11:49:03","12.0","Windows (32-bit) NT 6.01"]
["25.09.2019 12:19:41","12.0","Windows (32-bit) NT 6.01"]
["25.09.2019 13:39:00","12.0","Windows (32-bit) NT 6.01"]
["22.10.2019 13:11:48","12.0","Windows (32-bit) NT 6.01"]
["22.10.2019 13:22:58","12.0","Windows (32-bit) NT 6.01"]
["22.10.2019 16:17:03","12.0","Windows (32-bit) NT 6.01"]
["14.11.2019 13:01:27","12.0","Windows (32-bit) NT 6.01"]
["14.11.2019 13:55:07","12.0","Windows (32-bit) NT 6.01"]
["14.11.2019 14:09:34","12.0","Windows (32-bit) NT 6.01"]
["14.11.2019 14:37:29","12.0","Windows (32-bit) NT 6.01"]
["06.01.2020 11:33:55","12.0","Windows (32-bit) NT 6.01"]
["29.01.2020 11:53:01","14.0","Windows (32-bit) NT 6.01"]
["06.02.2020 13:38:39","14.0","Windows (32-bit) NT 6.01"]
["06.02.2020 15:51:47","14.0","Windows (32-bit) NT 6.01"]
["17.02.2020 17:00:23","14.0","Windows (32-bit) NT 6.01"]
["17.02.2020 17:24:52","14.0","Windows (32-bit) NT 6.01"]
["28.01.2021 09:23:32","12.0","Windows (32-bit) NT 6.01"]

{"sheet":"TEHSHEET","index":7,"n_rows":86,"n_cols":7,"rows_kept":86,"cut":false,"hidden":true,"merged":[]}
[null,"Алтайский край",null,"MONTH","YEAR","DaNet","type_report"]
[0,"Амурская область",null,"январь",2018,"Да","В целом по организации"]
[null,"Архангельская область",null,"февраль",2019,"Нет","По обособленному подразделению"]
[null,"Астраханская область",null,"март",2020]
[null,"Белгородская область",null,"апрель",2021]
[null,"Брянская область",null,"май",2022]
[null,"Владимирская область",null,"июнь"]
[null,"Волгоградская область",null,"июль"]
[null,"Вологодская область",null,"август"]
[null,"Воронежская область",null,"сентябрь"]
[null,"г.Байконур",null,"октябрь"]
[null,"г. Москва",null,"ноябрь"]
[null,"г.Санкт-Петербург",null,"декабрь"]
[null,"г.Севастополь",null,"год"]
[null,"Еврейская автономная область"]
[null,"Забайкальский край"]
[null,"Ивановская область"]
[null,"Иркутская область"]
[null,"Кабардино-Балкарская республика"]
[null,"Калининградская область"]
[null,"Калужская область"]
[null,"Камчатский край",null,"URL_FORMAT"]
[null,"Карачаево-Черкесская республика",null,"https://portal.eias.ru/Portal/DownloadPage.aspx?type=12&guid=????????-????-????-????-????????????"]
[null,"Кемеровская область",null,"MSG_URL"]
[null,"Кировская область",null,{"$f":"\"Необходимо ввести ссылку на обосновывающие материалы в формате: \"\"\" & URL_FORMAT & \"\"\" (смотри раздел \"\"Методология заполнения\"\" листа \"\"Инструкция\"\")\"","v":"Необходимо ввести ссылку на обосновывающие материалы в формате: \"https://portal.eias.ru/Portal/DownloadPage.aspx?type=12&guid=????????-????-????-????-????????????\" (смотри раздел \"Методология заполнения\" листа \"Инструкция\")"}]
[null,"Костромская область"]
[null,"Краснодарский край"]
[null,"Красноярский край"]
[null,"Курганская область"]
[null,"Курская область"]
[null,"Ленинградская область"]
[null,"Липецкая область"]
[null,"Магаданская область"]
[null,"Московская область"]
[null,"Мурманская область"]
[null,"Ненецкий автономный округ"]
[null,"Нижегородская область"]
[null,"Новгородская область"]
[null,"Новосибирская область"]
[null,"Омская область"]
[null,"Оренбургская область"]
[null,"Орловская область"]
[null,"Пензенская область"]
[null,"Пермский край"]
[null,"Приморский край"]
[null,"Псковская область"]
[null,"Республика Адыгея"]
[null,"Республика Алтай"]
[null,"Республика Башкортостан"]
[null,"Республика Бурятия"]
[null,"Республика Дагестан"]
[null,"Республика Ингушетия"]
[null,"Республика Калмыкия"]
[null,"Республика Карелия"]
[null,"Республика Коми"]
[null,"Республика Крым"]
[null,"Республика Марий Эл"]
[null,"Республика Мордовия"]
[null,"Республика Саха (Якутия)"]
[null,"Республика Северная Осетия-Алания"]
[null,"Республика Татарстан"]
[null,"Республика Тыва"]
[null,"Республика Хакасия"]
[null,"Ростовская область"]
[null,"Рязанская область"]
[null,"Самарская область"]
[null,"Саратовская область"]
[null,"Сахалинская область"]
[null,"Свердловская область"]
[null,"Смоленская область"]
[null,"Ставропольский край"]
[null,"Тамбовская область"]
[null,"Тверская область"]
[null,"Томская область"]
[null,"Тульская область"]
[null,"Тюменская область"]
[null,"Удмуртская республика"]
[null,"Ульяновская область"]
[null,"Хабаровский край"]
[null,"Ханты-Мансийский автономный округ"]
[null,"Челябинская область"]
[null,"Чеченская республика"]
[null,"Чувашская республика"]
[null,"Чукотский автономный округ"]
[null,"Ямало-Ненецкий автономный округ"]
[null,"Ярославская область"]

{"sheet":"et_union","index":8,"n_rows":5,"n_cols":7,"rows_kept":5,"cut":false,"hidden":true,"merged":[]}
[]
["et_com"]
[null,null,"О",1]
["et_org"]
[null,null,null,null,null,null,{"$f":"SUM(H5:K5)","v":0}]

{"sheet":"AllSheetsInThisWorkbook","index":9,"n_rows":24,"n_cols":2,"rows_kept":24,"cut":false,"hidden":true,"merged":[]}
["Расчетные листы","Скрытые листы"]
["Инструкция","Statistic"]
["Лог обновления","TEHSHEET"]
["Титульный","et_union"]
["Отпуск ЭЭ сет организациями","AllSheetsInThisWorkbook"]
["Комментарии","mod_01"]
["Проверка","mod_11"]
[null,"modComm"]
[null,"modListProv"]
[null,"modButton"]
[null,"modInstruction"]
[null,"modHTTP"]
[null,"REESTR_ORG"]
[null,"REESTR_FIL"]
[null,"REESTR_MO"]
[null,"REESTR_EGRUL"]
[null,"modfrmRegion"]
[null,"modfrmReestr"]
[null,"modfrmFindEGRUL"]
[null,"modfrmCheckUpdates"]
[null,"modReestr"]
[null,"modUpdTemplMain"]
[null,"modHyperlink"]
[null,"modClassifierValidate"]

{"sheet":"mod_01","index":10,"n_rows":0,"n_cols":0,"rows_kept":0,"cut":false,"hidden":true,"merged":[]}

{"sheet":"mod_11","index":11,"n_rows":0,"n_cols":0,"rows_kept":0,"cut":false,"hidden":true,"merged":[]}

{"sheet":"modComm","index":12,"n_rows":0,"n_cols":0,"rows_kept":0,"cut":false,"hidden":true,"merged":[]}

{"sheet":"modListProv","index":13,"n_rows":0,"n_cols":0,"rows_kept":0,"cut":false,"hidden":true,"merged":[]}

{"sheet":"modButton","index":14,"n_rows":0,"n_cols":0,"rows_kept":0,"cut":false,"hidden":true,"merged":[]}

{"sheet":"modInstruction","index":15,"n_rows":0,"n_cols":0,"rows_kept":0,"cut":false,"hidden":true,"merged":[]}

{"sheet":"modHTTP","index":16,"n_rows":0,"n_cols":0,"rows_kept":0,"cut":false,"hidden":true,"merged":[]}

{"sheet":"REESTR_ORG","index":17,"n_rows":100,"n_cols":19,"rows_kept":100,"cut":false,"hidden":true,"merged":[]}
[null,"REGION_ID","REGION_NAME","MR_NAME","OKTMR_NAME","MO_NAME","OKTMO_NAME","RST_ORG_ID","ORG_NAME","INN_NAME","KPP_NAME","ORG_START_DATE","ORG_END_DATE","VDET_START_DATE","VDET_END_DATE","VDET_NAME","VDET_NAME_LIST","VDET_FULL_NAME_LIST","HAS_TARIFF"]
[1,"2603","Ярославская область",null,null,null,null,"26318885","АО \"Газпром энергосбыт\"","7705750968","772901001",null,null,null,null,null,"Нерегулируемый сбыт","/Электроэнергетика/Сбыт ЭЭ/Нерегулируемый сбыт","Y"]
[2,"2603","Ярославская область",null,null,null,null,"28822308","АО \"Малая комплексная энергетика\"","7612043797","760601001",null,null,null,null,null,"Некомбинированная выработка","/Электроэнергетика/Производство ЭЭ/Некомбинированная выработка","Y"]
[3,"2603","Ярославская область",null,null,null,null,"28274447","АО \"Межрегиональная Энергосервисная Компания\"","7604217739","760401001","04-10-2013 00:00:00",null,null,null,null,"РСО","/Электроэнергетика/Передача ЭЭ/РСО","Y"]
[4,"2603","Ярославская область",null,null,null,null,"26318876","АО \"Мосэнергосбыт\"","7736520080","997650001",null,null,null,null,null,"Нерегулируемый сбыт","/Электроэнергетика/Сбыт ЭЭ/Нерегулируемый сбыт","Y"]
[5,"2603","Ярославская область",null,null,null,null,"27215840","АО \"Оборонэнерго\" филиал \"Волго-Вятский\"","7704726225","526343001","01-09-2011 00:00:00",null,null,null,null,"РСО","/Электроэнергетика/Передача ЭЭ/РСО","Y"]
[6,"2603","Ярославская область",null,null,null,null,"26617350","АО \"Оборонэнергосбыт\"","7704731218","773043001","23-03-2010 00:00:00",null,null,null,null,"ГП","/Электроэнергетика/Сбыт ЭЭ/ГП","Y"]
[7,"2603","Ярославская область",null,null,null,null,"26483340","АО \"Ресурс\"","7616009483","761601001",null,null,null,null,null,"РСО","/Электроэнергетика/Передача ЭЭ/РСО","Y"]
[8,"2603","Ярославская область",null,null,null,null,"26448586","АО \"Сибурэнергоменеджмент\"","7727276526","366301001",null,null,null,null,null,"Нерегулируемый сбыт","/Электроэнергетика/Сбыт ЭЭ/Нерегулируемый сбыт","Y"]
[9,"2603","Ярославская область",null,null,null,null,"28134686","АО \"Тутаевская ПГУ\"","7611020204","761101001",null,null,null,null,null,"Комбинированная выработка","/Электроэнергетика/Производство ЭЭ/Комбинированная выработка","Y"]
[10,"2603","Ярославская область",null,null,null,null,"27651604","АО \"Электросети ЯГК\"","7606084668","760601001",null,null,null,null,null,"РСО","/Электроэнергетика/Передача ЭЭ/РСО","Y"]
[11,"2603","Ярославская область",null,null,null,null,"26569087","АО \"Ярославская генерирующая компания\"","7604178769","760601001",null,null,null,null,null,"Некомбинированная выработка","/Электроэнергетика/Производство ЭЭ/Некомбинированная выработка","Y"]
[12,"2603","Ярославская область",null,null,null,null,"26524716","АО \"Ярославская электросетевая компания\"","7602069588","760201001",null,null,null,null,null,"РСО","/Электроэнергетика/Передача ЭЭ/РСО","Y"]
[13,"2603","Ярославская область",null,null,null,null,"26514575","АО \"Ярославский завод дизельной аппаратуры\"","7601000833","760601001",null,null,null,null,null,"РСО","/Электроэнергетика/Передача ЭЭ/РСО","Y"]
[14,"2603","Ярославская область",null,null,null,null,"26811543","АО \"Ярославский технический углерод имени В.Ю. Орлова\"","7605000714","760450001",null,null,null,null,null,"Комбинированная выработка","/Электроэнергетика/Производство ЭЭ/Комбинированная выработка","Y"]
[15,"2603","Ярославская область",null,null,null,null,"26811543","АО \"Ярославский технический углерод имени В.Ю. Орлова\"","7605000714","760450001",null,null,null,null,null,"Нерегулируемый сбыт :: Некомбинированная выработка","/Электроэнергетика/Сбыт ЭЭ/Нерегулируемый сбыт :: /Электроэнергетика/Производство ЭЭ/Некомбинированная выработка","Y"]
[16,"2603","Ярославская область",null,null,null,null,"26483314","Бурмакинское МП ЖКХ","7621001440","762101001",null,null,null,null,null,"РСО","/Электроэнергетика/Передача ЭЭ/РСО","Y"]
[17,"2603","Ярославская область",null,null,null,null,"26319641","Вологодский филиал ПАО «МРСК Северо-Запада»","7802312751","352543001","07-03-2008 00:00:00",null,null,null,null,"РСО","/Электроэнергетика/Передача ЭЭ/РСО","N"]
[18,"2603","Ярославская область",null,null,null,null,"26319641","Вологодский филиал ПАО «МРСК Северо-Запада»","7802312751","352543001","07-03-2008 00:00:00",null,null,null,null,"Нерегулируемый сбыт","/Электроэнергетика/Сбыт ЭЭ/Нерегулируемый сбыт","Y"]
[19,"2603","Ярославская область",null,null,null,null,"26525046","ЗАО \"Железобетон\"","7601000262","760201001",null,null,null,null,null,"РСО","/Электроэнергетика/Передача ЭЭ/РСО","Y"]
[20,"2603","Ярославская область",null,null,null,null,"27651563","ЗАО \"Объединенная электросетевая компания-Ярославль\"","7604070035","760401001",null,null,null,null,null,"РСО","/Электроэнергетика/Передача ЭЭ/РСО","Y"]
[21,"2603","Ярославская область",null,null,null,null,"26514513","ЗАО \"Пансионат отдыха \"Ярославль\"","7627015577","762701001",null,null,null,null,null,"РСО","/Электроэнергетика/Передача ЭЭ/РСО","Y"]
[22,"2603","Ярославская область",null,null,null,null,"26483202","ЗАО \"Энергосервис\"","7603026805","760301001",null,null,null,null,null,"РСО","/Электроэнергетика/Передача ЭЭ/РСО","Y"]
[23,"2603","Ярославская область",null,null,null,null,"26649314","ЗАО \"Ярославль-Резинотехника\"","7603024491","760301001",null,null,null,null,null,"РСО","/Электроэнергетика/Передача ЭЭ/РСО","Y"]
[24,"2603","Ярославская область",null,null,null,null,"26524855","ИП А.В. Шутов","760400719100","отсутствует",null,null,null,null,null,"РСО","/Электроэнергетика/Передача ЭЭ/РСО","Y"]
[25,"2603","Ярославская область",null,null,null,null,"26319519","МУП \"Горэлектросеть\"","7611003390","761101001",null,null,null,null,null,"РСО","/Электроэнергетика/Передача ЭЭ/РСО","Y"]
[26,"2603","Ярославская область",null,null,null,null,"26785009","МУП \"Энергетик\"","7608010100","760801002",null,null,null,null,null,"Комбинированная выработка","/Электроэнергетика/Производство ЭЭ/Комбинированная выработка","Y"]
[27,"2603","Ярославская область",null,null,null,null,"29646676","МУП \"Энергетический ресурс\" Некрасовского муниципального района","7621010075","762101001",null,null,null,null,null,"РСО","/Электроэнергетика/Передача ЭЭ/РСО","Y"]
[28,"2603","Ярославская область",null,null,null,null,"26483322","МУП ЖКХ \"Заволжское\"","7621006992","762101001",null,null,null,null,null,"Комбинированная выработка","/Электроэнергетика/Производство ЭЭ/Комбинированная выработка","Y"]
[29,"2603","Ярославская область",null,null,null,null,"26514525","ОАО \"ЖКХ \"Заволжье\"","7627032974","762701001",null,null,null,null,null,"РСО","/Электроэнергетика/Передача ЭЭ/РСО","Y"]
[30,"2603","Ярославская область",null,null,null,null,"26525048","ОАО \"Металлоторг\"","7627005071","760401001",null,null,null,null,null,"РСО","/Электроэнергетика/Передача ЭЭ/РСО","Y"]
[31,"2603","Ярославская область",null,null,null,null,"27226637","ОАО \"Оборонэнерго\" Филиал \"Верхневолжский\"","7704726225","695043002",null,null,null,null,null,"РСО","/Электроэнергетика/Передача ЭЭ/РСО","Y"]
[32,"2603","Ярославская область",null,null,null,null,"30919136","ОАО \"Рыбинская городская электросеть\"","7610096000","761001001","05-06-2017 00:00:00",null,null,null,null,"РСО","/Электроэнергетика/Передача ЭЭ/РСО","Y"]
[33,"2603","Ярославская область",null,null,null,null,"26524831","ОАО \"Северное производственно-комплектовочное предприятие \"Оборонпромкомплекс\"","7602001371","760201001",null,null,null,null,null,"РСО","/Электроэнергетика/Передача ЭЭ/РСО","Y"]
[34,"2603","Ярославская область",null,null,null,null,"26524735","ОАО \"Ярославская городская электросеть\"","7604168778","760401001",null,null,null,null,null,"РСО","/Электроэнергетика/Передача ЭЭ/РСО","Y"]
[35,"2603","Ярославская область",null,null,null,null,"26319496","ОАО \"Ярославский нефтеперерабатывающий завод им. Д.И. Менделеева\"","7611002100","761101001",null,null,null,null,null,"РСО","/Электроэнергетика/Передача ЭЭ/РСО","Y"]
[36,"2603","Ярославская область",null,null,null,null,"26524898","ОАО \"Ярославский судостроительный завод\"","7601001080","760101001",null,null,null,null,null,"РСО","/Электроэнергетика/Передача ЭЭ/РСО","Y"]
[37,"2603","Ярославская область",null,null,null,null,"26837653","ОАО ГК «ТНС энерго»","7705541227","770201001",null,null,null,null,null,"Нерегулируемый сбыт","/Электроэнергетика/Сбыт ЭЭ/Нерегулируемый сбыт","Y"]
[38,"2603","Ярославская область",null,null,null,null,"28254087","ООО \"БизнесПродуктГрупп\"","7708579934","772301001",null,null,null,null,null,"РСО","/Электроэнергетика/Передача ЭЭ/РСО","Y"]
[39,"2603","Ярославская область",null,null,null,null,"26525005","ООО \"Газпром энерго\" Северный филиал","7736186950","990203002",null,null,null,null,null,"РСО","/Электроэнергетика/Передача ЭЭ/РСО","Y"]
[40,"2603","Ярославская область",null,null,null,null,"26613700","ООО \"Гарант Энерго\"","7709782777","770901001",null,null,null,null,null,"Нерегулируемый сбыт","/Электроэнергетика/Сбыт ЭЭ/Нерегулируемый сбыт","Y"]
[41,"2603","Ярославская область",null,null,null,null,"26527116","ООО \"ГлавЭнергоСбыт\"","7725571452","772501001",null,null,null,null,null,"Нерегулируемый сбыт","/Электроэнергетика/Сбыт ЭЭ/Нерегулируемый сбыт","Y"]
[42,"2603","Ярославская область",null,null,null,null,"26427401","ООО \"Дизаж М\"","7728587330","772801001",null,null,null,null,null,"Нерегулируемый сбыт","/Электроэнергетика/Сбыт ЭЭ/Нерегулируемый сбыт","Y"]
[43,"2603","Ярославская область",null,null,null,null,"30911713","ООО \"ЕЭС-Гарант\"","5024173259","502401001","01-03-2017 00:00:00",null,null,null,null,"Нерегулируемый сбыт","/Электроэнергетика/Сбыт ЭЭ/Нерегулируемый сбыт","Y"]
[44,"2603","Ярославская область",null,null,null,null,"27855290","ООО \"Инженерные изыскания\"","1103029229","352801001","14-01-2004 00:00:00",null,null,null,null,"Нерегулируемый сбыт","/Электроэнергетика/Сбыт ЭЭ/Нерегулируемый сбыт","Y"]
[45,"2603","Ярославская область",null,null,null,null,"26525287","ООО \"Каскад - Энергосбыт\"","4028033356","992802001",null,null,null,null,null,"Нерегулируемый сбыт","/Электроэнергетика/Сбыт ЭЭ/Нерегулируемый сбыт","Y"]
[46,"2603","Ярославская область",null,null,null,null,"26525025","ООО \"Каскад - Энергосеть\"","4028033476","992801002",null,null,null,null,null,"РСО","/Электроэнергетика/Передача ЭЭ/РСО","Y"]
[47,"2603","Ярославская область",null,null,null,null,"26319520","ООО \"Льняной комбинат \"ТУЛЬМА\"","7604236040","760401001",null,null,null,null,null,"РСО","/Электроэнергетика/Передача ЭЭ/РСО","Y"]
[48,"2603","Ярославская область",null,null,null,null,"26516013","ООО \"МАРЭМ+\"","7702387915","770201001","16-02-1998 00:00:00",null,null,null,null,"Нерегулируемый сбыт","/Электроэнергетика/Сбыт ЭЭ/Нерегулируемый сбыт","Y"]
[49,"2603","Ярославская область",null,null,null,null,"31214277","ООО \"МТС ЭНЕРГО\"","9709006506","772601001","24-10-2018 00:00:00",null,null,null,null,"Нерегулируемый сбыт","/Электроэнергетика/Сбыт ЭЭ/Нерегулируемый сбыт","Y"]
[50,"2603","Ярославская область",null,null,null,null,"27667971","ООО \"МагнитЭнерго\"","7715902899","771501001",null,null,null,null,null,"Нерегулируемый сбыт","/Электроэнергетика/Сбыт ЭЭ/Нерегулируемый сбыт","Y"]
[51,"2603","Ярославская область",null,null,null,null,"28254100","ООО \"Производственная фирма \"СТИС\"","7606074860","760601001",null,null,null,null,null,"РСО","/Электроэнергетика/Передача ЭЭ/РСО","Y"]
[52,"2603","Ярославская область",null,null,null,null,"26416221","ООО \"РН-Энерго\"","7706525041","997650001","02-05-2012 00:00:00",null,null,null,null,"Нерегулируемый сбыт","/Электроэнергетика/Сбыт ЭЭ/Нерегулируемый сбыт","Y"]
[53,"2603","Ярославская область",null,null,null,null,"26318820","ООО \"Региональная энергосбытовая компания\" (ОПП)","4633017746","463301001",null,null,null,null,null,"Нерегулируемый сбыт","/Электроэнергетика/Сбыт ЭЭ/Нерегулируемый сбыт","Y"]
[54,"2603","Ярославская область",null,null,null,null,"26525040","ООО \"Регионэлектросеть\"","4401063157","760401001",null,null,null,null,null,"РСО","/Электроэнергетика/Передача ЭЭ/РСО","Y"]
[55,"2603","Ярославская область",null,null,null,null,"26525036","ООО \"Ресурс\"","7611018163","761101001",null,null,null,null,null,"РСО","/Электроэнергетика/Передача ЭЭ/РСО","Y"]
[56,"2603","Ярославская область",null,null,null,null,"26525270","ООО \"Русэнергоресурс\"","7706288496","997450001",null,null,null,null,null,"Нерегулируемый сбыт","/Электроэнергетика/Сбыт ЭЭ/Нерегулируемый сбыт","Y"]
[57,"2603","Ярославская область",null,null,null,null,"26502786","ООО \"Русэнергосбыт\"","7706284124","770401001",null,null,null,null,null,"ГП","/Электроэнергетика/Сбыт ЭЭ/ГП","Y"]
[58,"2603","Ярославская область",null,null,null,null,"30877421","ООО \"Северэнерго\"","7627018507","762701001",null,null,null,null,null,"РСО","/Электроэнергетика/Передача ЭЭ/РСО","Y"]
[59,"2603","Ярославская область",null,null,null,null,"27555004","ООО \"Спецторг Плюс\"","7604076460","760401001","31-05-2005 00:00:00",null,null,null,null,"РСО","/Электроэнергетика/Передача ЭЭ/РСО","Y"]
[60,"2603","Ярославская область",null,null,null,null,"31095969","ООО \"ТГК-2 Энергосбыт\"","7604193710","290101001","18-04-2018 00:00:00",null,null,null,null,"Нерегулируемый сбыт","/Электроэнергетика/Сбыт ЭЭ/Нерегулируемый сбыт","Y"]
[61,"2603","Ярославская область",null,null,null,null,"27569416","ООО \"Тепловая энергетическая компания - 1\"","7604188573","760401001",null,null,null,null,null,"РСО","/Электроэнергетика/Передача ЭЭ/РСО","Y"]
[62,"2603","Ярославская область",null,null,null,null,"28819186","ООО \"Техпромэксперт-Ярославль\"","7604260276","760401001",null,null,null,null,null,"РСО","/Электроэнергетика/Передача ЭЭ/РСО","Y"]
[63,"2603","Ярославская область",null,null,null,null,"26611514","ООО \"ТранснефтьЭлектросетьСервис\"","6311049306","631101001","19-10-2000 00:00:00",null,null,null,null,"РСО","/Электроэнергетика/Передача ЭЭ/РСО","Y"]
[64,"2603","Ярославская область",null,null,null,null,"26497668","ООО \"Транснефтьэнерго\"","7703552167","772301001","01-07-2009 00:00:00",null,null,null,null,"Нерегулируемый сбыт","/Электроэнергетика/Сбыт ЭЭ/Нерегулируемый сбыт","Y"]
[65,"2603","Ярославская область",null,null,null,null,"27805201","ООО \"Трансэнергопром\"","7731411714","770501001","08-08-2012 00:00:00",null,null,null,null,"Нерегулируемый сбыт","/Электроэнергетика/Сбыт ЭЭ/Нерегулируемый сбыт","Y"]
[66,"2603","Ярославская область",null,null,null,null,"28453584","ООО \"Хуадянь-Тенинская ТЭЦ\"","7604217961","760401001","30-01-2018 00:00:00",null,null,null,null,"Нерегулируемый сбыт :: Комбинированная выработка","/Электроэнергетика/Сбыт ЭЭ/Нерегулируемый сбыт :: /Электроэнергетика/Производство ЭЭ/Комбинированная выработка","Y"]
[67,"2603","Ярославская область",null,null,null,null,"28453584","ООО \"Хуадянь-Тенинская ТЭЦ\"","7604217961","760401001","30-01-2018 00:00:00",null,null,null,null,"Комбинированная выработка","/Электроэнергетика/Производство ЭЭ/Комбинированная выработка","Y"]
[68,"2603","Ярославская область",null,null,null,null,"28175700","ООО \"Центрэнерго\"","7703728269","770301001",null,null,null,null,null,"Нерегулируемый сбыт","/Электроэнергетика/Сбыт ЭЭ/Нерегулируемый сбыт","Y"]
[69,"2603","Ярославская область",null,null,null,null,"26525063","ООО \"ЭКО\"","7607026637","760701001",null,null,null,null,null,"РСО","/Электроэнергетика/Передача ЭЭ/РСО","Y"]
[70,"2603","Ярославская область",null,null,null,null,"30834504","ООО \"Электросеть\"","7606101137","760601001",null,null,null,null,null,"РСО","/Электроэнергетика/Передача ЭЭ/РСО","Y"]
[71,"2603","Ярославская область",null,null,null,null,"26319509","ООО \"Энергия\"","7610059551","761001001",null,null,null,null,null,"РСО","/Электроэнергетика/Передача ЭЭ/РСО","Y"]
[72,"2603","Ярославская область",null,null,null,null,"26483210","ООО \"Энергия-1\"","7605005021","760501001",null,null,null,null,null,"РСО","/Электроэнергетика/Передача ЭЭ/РСО","Y"]
[73,"2603","Ярославская область",null,null,null,null,"28273905","ООО \"ЭнергоСистемные Решения\"","7604240713","760401001",null,null,null,null,null,"РСО","/Электроэнергетика/Передача ЭЭ/РСО","Y"]
[74,"2603","Ярославская область",null,null,null,null,"27971145","ООО \"Энергокомпания\"","7612044470","761201001",null,null,null,null,null,"РСО","/Электроэнергетика/Передача ЭЭ/РСО","Y"]
[75,"2603","Ярославская область",null,null,null,null,"28426311","ООО \"Энергоресурс\"","7602076842","760201001","05-02-2010 00:00:00",null,null,null,null,"РСО","/Электроэнергетика/Передача ЭЭ/РСО","Y"]
[76,"2603","Ярославская область",null,null,null,null,"31414561","ООО \"Энергосбытовая компания \"Горкунов\"","5433970181","543301001","01-10-2019 00:00:00",null,null,null,null,"Нерегулируемый сбыт","/Электроэнергетика/Сбыт ЭЭ/Нерегулируемый сбыт","N"]
[77,"2603","Ярославская область",null,null,null,null,"28494405","ООО \"Энергосистема\"","7715887873","770201001",null,null,null,null,null,"Нерегулируемый сбыт","/Электроэнергетика/Сбыт ЭЭ/Нерегулируемый сбыт","Y"]
[78,"2603","Ярославская область",null,null,null,null,"30940797","ООО \"ЯрМК\"","7602110395","760201002",null,null,null,null,null,"РСО","/Электроэнергетика/Передача ЭЭ/РСО","Y"]
[79,"2603","Ярославская область",null,null,null,null,"31336299","ООО \"Ярославль Энергосети\"","7603071117","760301001",null,null,null,null,null,"РСО","/Электроэнергетика/Передача ЭЭ/РСО","Y"]
[80,"2603","Ярославская область",null,null,null,null,"28797527","ООО «Энергопромсбыт»","7722781966","772201001",null,null,null,null,null,"Нерегулируемый сбыт","/Электроэнергетика/Сбыт ЭЭ/Нерегулируемый сбыт","Y"]
[81,"2603","Ярославская область",null,null,null,null,"26809216","Общество с ограниченной ответственностью «Комплексэнергосервис»","7727688054","770401001",null,null,null,null,null,"Нерегулируемый сбыт","/Электроэнергетика/Сбыт ЭЭ/Нерегулируемый сбыт","Y"]
[82,"2603","Ярославская область",null,null,null,null,"26483403","ПАО \"Научно-производственное объединение Фильтры индустриальные газоочистные\"","7609001719","760901001",null,null,null,null,null,"РСО","/Электроэнергетика/Передача ЭЭ/РСО","Y"]
[83,"2603","Ярославская область",null,null,null,null,"26483377","ПАО \"ОДК-Сатурн\"","7610052644","761001001",null,null,null,null,null,"Комбинированная выработка","/Электроэнергетика/Производство ЭЭ/Комбинированная выработка","Y"]
[84,"2603","Ярославская область",null,null,null,null,"26523308","ПАО \"ТГК-2\"","7606053324","760601001",null,null,null,null,null,"Комбинированная выработка :: Некомбинированная выработка","/Электроэнергетика/Производство ЭЭ/Комбинированная выработка :: /Электроэнергетика/Производство ЭЭ/Некомбинированная выработка","Y"]
[85,"2603","Ярославская область",null,null,null,null,"26523308","ПАО \"ТГК-2\"","7606053324","760601001",null,null,null,null,null,"Комбинированная выработка","/Электроэнергетика/Производство ЭЭ/Комбинированная выработка","Y"]
[86,"2603","Ярославская область",null,null,null,null,"26483170","ПАО \"ТГК-2\"","7606053324","760631001",null,null,null,null,null,"Комбинированная выработка","/Электроэнергетика/Производство ЭЭ/Комбинированная выработка","Y"]
[87,"2603","Ярославская область",null,null,null,null,"26318874","ПАО \"ТНС энерго Ярославль\"","7606052264","760601001",null,null,null,null,null,"ГП","/Электроэнергетика/Сбыт ЭЭ/ГП","Y"]
[88,"2603","Ярославская область",null,null,null,null,"27954259","ПАО \"ФСК ЕЭС\"","4716016979","997450001",null,null,null,null,null,"РСО","/Электроэнергетика/Передача ЭЭ/РСО","Y"]
[89,"2603","Ярославская область",null,null,null,null,"26650304","ПАО \"Ярославский ордена Ленина и ордена Октябрьской революции шинный завод\"","7601001509","760150001",null,null,null,null,null,"РСО","/Электроэнергетика/Передача ЭЭ/РСО","Y"]
[90,"2603","Ярославская область",null,null,null,null,"26483178","ПАО \"Ярославский радиозавод\"","7601000086","760401001",null,null,null,null,null,"РСО","/Электроэнергетика/Передача ЭЭ/РСО","Y"]
[91,"2603","Ярославская область",null,null,null,null,"26525264","ПАО Группа компаний \"ТНС энерго\"","7709331020","770201001",null,null,null,null,null,"Нерегулируемый сбыт","/Электроэнергетика/Сбыт ЭЭ/Нерегулируемый сбыт","Y"]
[92,"2603","Ярославская область",null,null,null,null,"26754796","Северная дирекция по энергообеспечению - структурное подразделение Трансэнерго - филиала ОАО \"Российские железные дороги\"","7708503727","760445013",null,null,null,null,null,"РСО","/Электроэнергетика/Передача ЭЭ/РСО","Y"]
[93,"2603","Ярославская область",null,null,null,null,"26319515","ФКУ Исправительная колония № 3 УФСИН России по Ярославской области","7612010960","761201001",null,null,null,null,null,"РСО","/Электроэнергетика/Передача ЭЭ/РСО","Y"]
[94,"2603","Ярославская область",null,null,null,null,"30849324","Филиал АО \"Кордиант\" в городе Ярославле (ЯШЗ)","7601001509","760643002","07-10-2016 00:00:00",null,null,null,null,"РСО","/Электроэнергетика/Передача ЭЭ/РСО","Y"]
[95,"2603","Ярославская область",null,null,null,null,"26319507","Филиал ОАО \"Мостостройиндустрия\" Завод № 50","7708000794","760302001",null,null,null,null,null,"РСО","/Электроэнергетика/Передача ЭЭ/РСО","Y"]
[96,"2603","Ярославская область",null,null,null,null,"26525054","Филиал ООО \"Газпром трансгаз Ухта\" - Мышкинское ЛПУМГ","1102024468","761902001",null,null,null,null,null,"РСО","/Электроэнергетика/Передача ЭЭ/РСО","Y"]
[97,"2603","Ярославская область",null,null,null,null,"26525044","Филиал ПАО \"МРСК Центра\" - \"Ярэнерго\"","6901067107","760602001",null,null,null,null,null,"РСО","/Электроэнергетика/Передача ЭЭ/РСО","Y"]
[98,"2603","Ярославская область",null,null,null,null,"26796079","Филиал ПАО \"РусГидро\" - \"Каскад Верхневолжских ГЭС\"","2460066195","761002001","22-03-2011 00:00:00",null,null,null,null,"Некомбинированная выработка","/Электроэнергетика/Производство ЭЭ/Некомбинированная выработка","Y"]
[99,"2603","Ярославская область",null,null,null,null,"26557735","Филиал ФГУП \"ЖКУ РАН\" Борок","7736111591","762043001",null,null,null,null,null,"РСО","/Электроэнергетика/Передача ЭЭ/РСО","Y"]

{"sheet":"REESTR_FIL","index":18,"n_rows":1,"n_cols":5,"rows_kept":1,"cut":false,"hidden":true,"merged":[]}
["МР","МО","МО_ОКТМО","МР","ИМЯ ДИАПАЗОНА"]

{"sheet":"REESTR_MO","index":19,"n_rows":101,"n_cols":6,"rows_kept":101,"cut":false,"hidden":true,"merged":[]}
["МР","МО","МО_ОКТМО","МО_ТИП","МР","ИМЯ ДИАПАЗОНА"]
["Большесельский муниципальный район","Благовещенское сельское поселение","78603411","сельское поселение","Большесельский муниципальный район","MO_LIST_2"]
["Большесельский муниципальный район","Большесельский муниципальный район","78603000","муниципальный район","Борисоглебский муниципальный район","MO_LIST_3"]
["Большесельский муниципальный район","Большесельское сельское поселение","78603422","сельское поселение","Брейтовский муниципальный район","MO_LIST_4"]
["Большесельский муниципальный район","Вареговское сельское поселение","78603427","сельское поселение","Гаврилов-Ямский муниципальный район","MO_LIST_5"]
["Борисоглебский муниципальный район","Андреевское сельское поселение","78606422","сельское поселение","Даниловский муниципальный район","MO_LIST_6"]
["Борисоглебский муниципальный район","Борисоглебский муниципальный район","78606000","муниципальный район","Любимский муниципальный район","MO_LIST_7"]
["Борисоглебский муниципальный район","Борисоглебское сельское поселение","78606407","сельское поселение","Мышкинский муниципальный район","MO_LIST_8"]
["Борисоглебский муниципальный район","Вощажниковское сельское поселение","78606410","сельское поселение","Некоузский муниципальный район","MO_LIST_9"]
["Борисоглебский муниципальный район","Высоковское сельское поселение","78606415","сельское поселение","Некрасовский муниципальный район","MO_LIST_10"]
["Борисоглебский муниципальный район","Инальцинское сельское поселение","78606405","сельское поселение","Первомайский муниципальный район","MO_LIST_11"]
["Брейтовский муниципальный район","Брейтовский муниципальный район","78609000","муниципальный район","Переславский муниципальный район","MO_LIST_12"]
["Брейтовский муниципальный район","Брейтовское сельское поселение","78609411","сельское поселение","Пошехонский муниципальный район","MO_LIST_13"]
["Брейтовский муниципальный район","Гореловское сельское поселение","78609422","сельское поселение","Ростовский муниципальный район","MO_LIST_14"]
["Брейтовский муниципальный район","Прозоровское сельское поселение","78609433","сельское поселение","Рыбинский муниципальный район","MO_LIST_15"]
["Гаврилов-Ямский муниципальный район","Великосельское сельское поселение","78612405","сельское поселение","Тутаевский муниципальный район","MO_LIST_16"]
["Гаврилов-Ямский муниципальный район","Гаврилов-Ямский муниципальный район","78612000","муниципальный район","Угличский муниципальный район","MO_LIST_17"]
["Гаврилов-Ямский муниципальный район","Городское поселение г. Гаврилов-Ям","78612101","городское поселение, в состав которого входит город","Ярославский муниципальный район","MO_LIST_18"]
["Гаврилов-Ямский муниципальный район","Заячье-Холмское сельское поселение","78612477","сельское поселение","город Переславль-Залесский","MO_LIST_19"]
["Гаврилов-Ямский муниципальный район","Митинское сельское поселение","78612450","сельское поселение","город Рыбинск","MO_LIST_20"]
["Гаврилов-Ямский муниципальный район","Шопшинское сельское поселение","78612490","сельское поселение","город Ярославль","MO_LIST_21"]
["Даниловский муниципальный район","Городское поселение г. Данилов","78615101","городское поселение, в состав которого входит город"]
["Даниловский муниципальный район","Даниловский муниципальный район","78615000","муниципальный район"]
["Даниловский муниципальный район","Даниловское сельское поселение","78615435","сельское поселение"]
["Даниловский муниципальный район","Дмитриевское сельское поселение","78615420","сельское поселение"]
["Даниловский муниципальный район","Середское сельское поселение","78615470","сельское поселение"]
["Любимский муниципальный район","Воскресенское сельское поселение","78618405","сельское поселение"]
["Любимский муниципальный район","Городское поселение г. Любим","78618101","городское поселение, в состав которого входит город"]
["Любимский муниципальный район","Ермаковское сельское поселение","78618410","сельское поселение"]
["Любимский муниципальный район","Любимский муниципальный район","78618000","муниципальный район"]
["Любимский муниципальный район","Осецкое сельское поселение","78618433","сельское поселение"]
["Мышкинский муниципальный район","Городское поселение г. Мышкин","78621101","городское поселение, в состав которого входит город"]
["Мышкинский муниципальный район","Мышкинский муниципальный район","78621000","муниципальный район"]
["Мышкинский муниципальный район","Охотинское сельское поселение","78621430","сельское поселение"]
["Мышкинский муниципальный район","Приволжское сельское поселение","78621415","сельское поселение"]
["Некоузский муниципальный район","Веретейское сельское поселение","78623404","сельское поселение"]
["Некоузский муниципальный район","Волжское сельское поселение","78623406","сельское поселение"]
["Некоузский муниципальный район","Некоузский муниципальный район","78623000","муниципальный район"]
["Некоузский муниципальный район","Некоузское сельское поселение","78623415","сельское поселение"]
["Некоузский муниципальный район","Октябрьское сельское поселение","78623427","сельское поселение"]
["Некрасовский муниципальный район","Бурмакино сельское поселение","78626409","сельское поселение"]
["Некрасовский муниципальный район","Красный Профинтерн сельское поселение","78626444","сельское поселение"]
["Некрасовский муниципальный район","Некрасовский муниципальный район","78626000","муниципальный район"]
["Некрасовский муниципальный район","Некрасовское сельское поселение","78626457","сельское поселение"]
["Первомайский муниципальный район","Городское поселение п.Пречистое","78629151","городское поселение, в состав которого входит поселок"]
["Первомайский муниципальный район","Кукобойское сельское поселение","78629435","сельское поселение"]
["Первомайский муниципальный район","Первомайский муниципальный район","78629000","муниципальный район"]
["Первомайский муниципальный район","Пречистенское сельское поселение","78629450","сельское поселение"]
["Переславский муниципальный район","Нагорьевское сельское поселение","78632452","сельское поселение"]
["Переславский муниципальный район","Переславский муниципальный район","78632000","муниципальный район"]
["Переславский муниципальный район","Пригородное сельское поселение","78632455","сельское поселение"]
["Переславский муниципальный район","Рязанцевское сельское поселение","78632468","сельское поселение"]
["Пошехонский муниципальный район","Белосельское сельское поселение","78634404","сельское поселение"]
["Пошехонский муниципальный район","Городское поселение Пошехонье","78634101","городское поселение, в состав которого входит город"]
["Пошехонский муниципальный район","Ермаковское сельское поселение","78634428","сельское поселение"]
["Пошехонский муниципальный район","Кременевское сельское поселение","78634460","сельское поселение"]
["Пошехонский муниципальный район","Пошехонский муниципальный район","78634000","муниципальный район"]
["Пошехонский муниципальный район","Пригородное сельское поселение","78634436","сельское поселение"]
["Ростовский муниципальный район","Городское поселение г.Ростов","78637101","городское поселение, в состав которого входит город"]
["Ростовский муниципальный район","Ишня сельское поселение","78637412","сельское поселение"]
["Ростовский муниципальный район","Петровское сельское поселение","78637441","сельское поселение"]
["Ростовский муниципальный район","Поречье-Рыбное сельское поселение","78637442","сельское поселение"]
["Ростовский муниципальный район","Ростовский муниципальный район","78637000","муниципальный район"]
["Ростовский муниципальный район","Семибратово сельское поселение","78637447","сельское поселение"]
["Рыбинский муниципальный район","Арефинское сельское поселение","78640410","сельское поселение"]
["Рыбинский муниципальный район","Волжское сельское поселение","78640415","сельское поселение"]
["Рыбинский муниципальный район","Глебовское сельское поселение","78640443","сельское поселение"]
["Рыбинский муниципальный район","Городское поселение Песочное","78640455","сельское поселение"]
["Рыбинский муниципальный район","Каменниковское сельское поселение","78640425","сельское поселение"]
["Рыбинский муниципальный район","Назаровское сельское поселение","78640430","сельское поселение"]
["Рыбинский муниципальный район","Огарковское сельское поселение","78640440","сельское поселение"]
["Рыбинский муниципальный район","Октябрьское сельское поселение","78640420","сельское поселение"]
["Рыбинский муниципальный район","Покровское сельское поселение","78640435","сельское поселение"]
["Рыбинский муниципальный район","Рыбинский муниципальный район","78640000","муниципальный район"]
["Рыбинский муниципальный район","Судоверфское сельское поселение","78640452","сельское поселение"]
["Рыбинский муниципальный район","Тихменевское сельское поселение","78640447","сельское поселение"]
["Тутаевский муниципальный район","Артемьевское сельское поселение","78643405","сельское поселение"]
["Тутаевский муниципальный район","Городское поселение г.Тутаев","78643101","городское поселение, в состав которого входит город"]
["Тутаевский муниципальный район","Константиновское сельское поселение","78643420","сельское поселение"]
["Тутаевский муниципальный район","Левобережное сельское поселение","78643460","сельское поселение"]
["Тутаевский муниципальный район","Тутаевский муниципальный район","78643000","муниципальный район"]
["Тутаевский муниципальный район","Чебаковское сельское поселение","78643450","сельское поселение"]
["Угличский муниципальный район","Головинское сельское поселение","78646440","сельское поселение"]
["Угличский муниципальный район","Городское поселение г.Углич","78646101","городское поселение, в состав которого входит город"]
["Угличский муниципальный район","Ильинское сельское поселение","78646420","сельское поселение"]
["Угличский муниципальный район","Отрадновское сельское поселение","78646475","сельское поселение"]
["Угличский муниципальный район","Слободское сельское поселение","78646410","сельское поселение"]
["Угличский муниципальный район","Угличский муниципальный район","78646000","муниципальный район"]
["Угличский муниципальный район","Улейминское сельское поселение","78646480","сельское поселение"]
["Ярославский муниципальный район","Городское поселение п. Лесная Поляна","78650155","городское поселение, в состав которого входит поселок"]
["Ярославский муниципальный район","Заволжское сельское поселение","78650410","сельское поселение"]
["Ярославский муниципальный район","Ивняковское сельское поселение","78650455","сельское поселение"]
["Ярославский муниципальный район","Карабихское сельское поселение","78650430","сельское поселение"]
["Ярославский муниципальный район","Кузнечихинское сельское поселение","78650435","сельское поселение"]
["Ярославский муниципальный район","Курбское сельское поселение","78650440","сельское поселение"]
["Ярославский муниципальный район","Некрасовское сельское поселение","78650470","сельское поселение"]
["Ярославский муниципальный район","Туношенское сельское поселение","78650495","сельское поселение"]
["Ярославский муниципальный район","Ярославский муниципальный район","78650000","муниципальный район"]
["город Переславль-Залесский","город Переславль-Залесский","78705000","городской округ"]
["город Рыбинск","город Рыбинск","78715000","городской округ"]
["город Ярославль","город Ярославль","78701000","городской округ"]

{"sheet":"REESTR_EGRUL","index":20,"n_rows":2,"n_cols":12,"rows_kept":2,"cut":false,"hidden":true,"merged":[]}
[null,"ORG_FULL_NAME","ORG_NAME","OGRN","INN","KPP","REG_DATE","TERMINATE_DATE","INCORRECT_DATE","REGION_ID","REGION_NAME","ADDRESS"]
[1,"АКЦИОНЕРНОЕ ОБЩЕСТВО \"СУДОСТРОИТЕЛЬНЫЙ ЗАВОД \"ВЫМПЕЛ\"","АО \"ССЗ \"ВЫМПЕЛ\"","1027601107082","7610015674","761001001","29-08-2002 00:00:00",null,null,"2603","Ярославская область","ОБЛАСТЬ ЯРОСЛАВСКАЯ, РАЙОН РЫБИНСКИЙ, ГОРОД РЫБИНСК, УЛИЦА НОВАЯ, 4"]

{"sheet":"modfrmRegion","index":21,"n_rows":0,"n_cols":0,"rows_kept":0,"cut":false,"hidden":true,"merged":[]}

{"sheet":"modfrmReestr","index":22,"n_rows":0,"n_cols":0,"rows_kept":0,"cut":false,"hidden":true,"merged":[]}

{"sheet":"modfrmFindEGRUL","index":23,"n_rows":0,"n_cols":0,"rows_kept":0,"cut":false,"hidden":true,"merged":[]}

{"sheet":"modfrmCheckUpdates","index":24,"n_rows":0,"n_cols":0,"rows_kept":0,"cut":false,"hidden":true,"merged":[]}

{"sheet":"modReestr","index":25,"n_rows":0,"n_cols":0,"rows_kept":0,"cut":false,"hidden":true,"merged":[]}

{"sheet":"modUpdTemplMain","index":26,"n_rows":0,"n_cols":0,"rows_kept":0,"cut":false,"hidden":true,"merged":[]}

{"sheet":"modHyperlink","index":27,"n_rows":0,"n_cols":0,"rows_kept":0,"cut":false,"hidden":true,"merged":[]}

{"sheet":"modClassifierValidate","index":28,"n_rows":0,"n_cols":0,"rows_kept":0,"cut":false,"hidden":true,"merged":[]}